Workbook

Sheet Start
B15: Warnung: Bei Gruppengrössen von mehr als 10 Teams pro Gruppe kann das Erzeugen sehr langsam werden.

Sheet Spielplan
BH1: $BH$232:$BN$241
A2: Strassenfussball Turnier
A3: StrassenSportBasel
F6: Kategorie: | M6: Kategorie | U6: am: | Y6: Datum
N8: Ort: | Q8: Ort
G10: Beginn: | H10: 12:15:00 | M10: Uhr | T10: Spielzeit: | U10: 1 | V10: 1x | W10: x | X10: 00:08:00 | AC10: min | AK10: Pause: | AL10: 00:03:00 | AQ10: min
B13: I. Teilnehmende Teams
L15: <Gruppe 1>
L16: 1 | P16: <Team>
L17: 2 | P17: <Team>
L18: 3 | P18: <Team>
L19: 4 | P19: <Team>
L20: 5 | P20: <Team>
L21: 6 | P21: <Team>
L22: 7 | P22: <Team>
L23: 8 | P23: <Team>
L24: 9 | P24: <Team>
L25: 10 | P25: <Team>
L27: <Gruppe 1>
L28: 11 | P28: <Team>
L29: 12 | P29: <Team>
L30: 13 | P30: <Team>
L31: 14 | P31: <Team>
L32: 15 | P32: <Team>
L33: 16 | P33: <Team>
L35: <Gruppe 1>
L36: 17 | P36: <Team>
L37: 18 | P37: <Team>
L38: 19 | P38: <Team>
L39: 20 | P39: <Team>
L41: <Gruppe 1>
L42: 21 | P42: <Team>
L43: 22 | P43: <Team>
L44: 23 | P44: <Team>
L45: 24 | P45: <Team>
L46: 25 | P46: <Team>
L47: 26 | P47: <Team>
L48: 27 | P48: <Team>
B51: II. Spielplan
B53: Nr. | D53: Platz | J53: Beginn | O53: Spielpaarung | AW53: Ergebnis | BB53: Fairplay | BG53: Punkte
B54: 1 | D54: 1 | J54: =H10+0*(U10*X10+AL10) -> 12:15:00 | O54: =$P$16 -> <Team> | AE54: - | AF54: =$P$25 -> <Team> | AY54: : | BD54: : | BG54: =IF(ISBLANK(AW54),"0",IF(AW54>AZ54,3,IF(AW54=AZ54,1,0))) + BB54 -> 0 | BH54: : | BI54: =IF(ISBLANK(AZ54),"0",IF(AZ54>AW54,3,IF(AZ54=AW54,1,0))) + BE54 -> 0
B55: 2 | D55: 1 | J55: =H10+1*(U10*X10+AL10) -> 12:26:00 | O55: =$P$28 -> <Team> | AE55: - | AF55: =$P$33 -> <Team> | AY55: : | BD55: : | BG55: 0 | BH55: : | BI55: 0
B56: 3 | D56: 1 | J56: =H10+2*(U10*X10+AL10) -> 12:37:00 | O56: =$P$36 -> <Team> | AE56: - | AF56: =$P$39 -> <Team> | AY56: : | BD56: : | BG56: 0 | BH56: : | BI56: 0
B57: 4 | D57: 1 | J57: =H10+3*(U10*X10+AL10) -> 12:48:00 | O57: =$P$42 -> <Team> | AE57: - | AF57: =$P$43 -> <Team> | AY57: : | BD57: : | BG57: 0 | BH57: : | BI57: 0
B58: 5 | D58: 1 | J58: =H10+4*(U10*X10+AL10) -> 12:59:00 | O58: =$P$17 -> <Team> | AE58: - | AF58: =$P$24 -> <Team> | AY58: : | BD58: : | BG58: 0 | BH58: : | BI58: 0
B59: 6 | D59: 1 | J59: =H10+5*(U10*X10+AL10) -> 13:10:00 | O59: =$P$29 -> <Team> | AE59: - | AF59: =$P$32 -> <Team> | AY59: : | BD59: : | BG59: 0 | BH59: : | BI59: 0
B60: 7 | D60: 1 | J60: =H10+6*(U10*X10+AL10) -> 13:21:00 | O60: =$P$37 -> <Team> | AE60: - | AF60: =$P$38 -> <Team> | AY60: : | BD60: : | BG60: 0 | BH60: : | BI60: 0
B61: 8 | D61: 1 | J61: =H10+7*(U10*X10+AL10) -> 13:32:00 | O61: =$P$44 -> <Team> | AE61: - | AF61: =$P$45 -> <Team> | AY61: : | BD61: : | BG61: 0 | BH61: : | BI61: 0
B62: 9 | D62: 1 | J62: =H10+8*(U10*X10+AL10) -> 13:43:00 | O62: =$P$18 -> <Team> | AE62: - | AF62: =$P$23 -> <Team> | AY62: : | BD62: : | BG62: 0 | BH62: : | BI62: 0
B63: 10 | D63: 1 | J63: =H10+9*(U10*X10+AL10) -> 13:54:00 | O63: =$P$30 -> <Team> | AE63: - | AF63: =$P$31 -> <Team> | AY63: : | BD63: : | BG63: 0 | BH63: : | BI63: 0
B64: 11 | D64: 1 | J64: =H10+10*(U10*X10+AL10) -> 14:05:00 | O64: =$P$36 -> <Team> | AE64: - | AF64: =$P$38 -> <Team> | AY64: : | BD64: : | BG64: 0 | BH64: : | BI64: 0
B65: 12 | D65: 1 | J65: =H10+11*(U10*X10+AL10) -> 14:16:00 | O65: =$P$46 -> <Team> | AE65: - | AF65: =$P$47 -> <Team> | AY65: : | BD65: : | BG65: 0 | BH65: : | BI65: 0
B66: 13 | D66: 1 | J66: =H10+12*(U10*X10+AL10) -> 14:27:00 | O66: =$P$19 -> <Team> | AE66: - | AF66: =$P$22 -> <Team> | AY66: : | BD66: : | BG66: 0 | BH66: : | BI66: 0
B67: 14 | D67: 1 | J67: =H10+13*(U10*X10+AL10) -> 14:38:00 | O67: =$P$28 -> <Team> | AE67: - | AF67: =$P$32 -> <Team> | AY67: : | BD67: : | BG67: 0 | BH67: : | BI67: 0
B68: 15 | D68: 1 | J68: =H10+14*(U10*X10+AL10) -> 14:49:00 | O68: =$P$39 -> <Team> | AE68: - | AF68: =$P$37 -> <Team> | AY68: : | BD68: : | BG68: 0 | BH68: : | BI68: 0
B69: 16 | D69: 1 | J69: =H10+15*(U10*X10+AL10) -> 15:00:00 | O69: =$P$42 -> <Team> | AE69: - | AF69: =$P$48 -> <Team> | AY69: : | BD69: : | BG69: 0 | BH69: : | BI69: 0
B70: 17 | D70: 1 | J70: =H10+16*(U10*X10+AL10) -> 15:11:00 | O70: =$P$20 -> <Team> | AE70: - | AF70: =$P$21 -> <Team> | AY70: : | BD70: : | BG70: 0 | BH70: : | BI70: 0
B71: 18 | D71: 1 | J71: =H10+17*(U10*X10+AL10) -> 15:22:00 | O71: =$P$33 -> <Team> | AE71: - | AF71: =$P$31 -> <Team> | AY71: : | BD71: : | BG71: 0 | BH71: : | BI71: 0
B72: 19 | D72: 1 | J72: =H10+18*(U10*X10+AL10) -> 15:33:00 | O72: =$P$36 -> <Team> | AE72: - | AF72: =$P$37 -> <Team> | AY72: : | BD72: : | BG72: 0 | BH72: : | BI72: 0
B73: 20 | D73: 1 | J73: =H10+19*(U10*X10+AL10) -> 15:44:00 | O73: =$P$43 -> <Team> | AE73: - | AF73: =$P$44 -> <Team> | AY73: : | BD73: : | BG73: 0 | BH73: : | BI73: 0
B74: 21 | D74: 1 | J74: =H10+20*(U10*X10+AL10) -> 15:55:00 | O74: =$P$16 -> <Team> | AE74: - | AF74: =$P$24 -> <Team> | AY74: : | BD74: : | BG74: 0 | BH74: : | BI74: 0
B75: 22 | D75: 1 | J75: =H10+21*(U10*X10+AL10) -> 16:06:00 | O75: =$P$29 -> <Team> | AE75: - | AF75: =$P$30 -> <Team> | AY75: : | BD75: : | BG75: 0 | BH75: : | BI75: 0
B76: 23 | D76: 1 | J76: =H10+22*(U10*X10+AL10) -> 16:17:00 | O76: =$P$38 -> <Team> | AE76: - | AF76: =$P$39 -> <Team> | AY76: : | BD76: : | BG76: 0 | BH76: : | BI76: 0
B77: 24 | D77: 1 | J77: =H10+23*(U10*X10+AL10) -> 16:28:00 | O77: =$P$45 -> <Team> | AE77: - | AF77: =$P$46 -> <Team> | AY77: : | BD77: : | BG77: 0 | BH77: : | BI77: 0
B78: 25 | D78: 1 | J78: =H10+24*(U10*X10+AL10) -> 16:39:00 | O78: =$P$25 -> <Team> | AE78: - | AF78: =$P$23 -> <Team> | AY78: : | BD78: : | BG78: 0 | BH78: : | BI78: 0
B79: 26 | D79: 1 | J79: =H10+25*(U10*X10+AL10) -> 16:50:00 | O79: =$P$28 -> <Team> | AE79: - | AF79: =$P$31 -> <Team> | AY79: : | BD79: : | BG79: 0 | BH79: : | BI79: 0
B80: 27 | D80: 1 | J80: =H10+26*(U10*X10+AL10) -> 17:01:00 | O80: =$P$36 -> <Team> | AE80: - | AF80: =$P$39 -> <Team> | AY80: : | BD80: : | BG80: 0 | BH80: : | BI80: 0
B81: 28 | D81: 1 | J81: =H10+27*(U10*X10+AL10) -> 17:12:00 | O81: =$P$47 -> <Team> | AE81: - | AF81: =$P$48 -> <Team> | AY81: : | BD81: : | BG81: 0 | BH81: : | BI81: 0
B82: 29 | D82: 1 | J82: =H10+28*(U10*X10+AL10) -> 17:23:00 | O82: =$P$17 -> <Team> | AE82: - | AF82: =$P$22 -> <Team> | AY82: : | BD82: : | BG82: 0 | BH82: : | BI82: 0
B83: 30 | D83: 1 | J83: =H10+29*(U10*X10+AL10) -> 17:34:00 | O83: =$P$32 -> <Team> | AE83: - | AF83: =$P$30 -> <Team> | AY83: : | BD83: : | BG83: 0 | BH83: : | BI83: 0
B84: 31 | D84: 1 | J84: =H10+30*(U10*X10+AL10) -> 17:45:00 | O84: =$P$37 -> <Team> | AE84: - | AF84: =$P$38 -> <Team> | AY84: : | BD84: : | BG84: 0 | BH84: : | BI84: 0
B85: 32 | D85: 1 | J85: =H10+31*(U10*X10+AL10) -> 17:56:00 | O85: =$P$42 -> <Team> | AE85: - | AF85: =$P$44 -> <Team> | AY85: : | BD85: : | BG85: 0 | BH85: : | BI85: 0
B86: 33 | D86: 1 | J86: =H10+32*(U10*X10+AL10) -> 18:07:00 | O86: =$P$18 -> <Team> | AE86: - | AF86: =$P$21 -> <Team> | AY86: : | BD86: : | BG86: =IF(ISBLANK(AW86),"0",IF(AW86>AZ86,3,IF(AW86=AZ86,1,0))) + BB86 -> 0 | BH86: : | BI86: =IF(ISBLANK(AZ86),"0",IF(AZ86>AW86,3,IF(AZ86=AW86,1,0))) + BE86 -> 0
B87: 34 | D87: 1 | J87: =H10+33*(U10*X10+AL10) -> 18:18:00 | O87: =$P$33 -> <Team> | AE87: - | AF87: =$P$29 -> <Team> | AY87: : | BD87: : | BG87: 0 | BH87: : | BI87: 0
B88: 35 | D88: 1 | J88: =H10+34*(U10*X10+AL10) -> 18:29:00 | O88: =$P$36 -> <Team> | AE88: - | AF88: =$P$38 -> <Team> | AY88: : | BD88: : | BG88: 0 | BH88: : | BI88: 0
B89: 36 | D89: 1 | J89: =H10+35*(U10*X10+AL10) -> 18:40:00 | O89: =$P$43 -> <Team> | AE89: - | AF89: =$P$46 -> <Team> | AY89: : | BD89: : | BG89: 0 | BH89: : | BI89: 0
B90: 37 | D90: 1 | J90: =H10+36*(U10*X10+AL10) -> 18:51:00 | O90: =$P$19 -> <Team> | AE90: - | AF90: =$P$20 -> <Team> | AY90: : | BD90: : | BG90: 0 | BH90: : | BI90: 0
B91: 38 | D91: 1 | J91: =H10+37*(U10*X10+AL10) -> 19:02:00 | O91: =$P$28 -> <Team> | AE91: - | AF91: =$P$30 -> <Team> | AY91: : | BD91: : | BG91: 0 | BH91: : | BI91: 0
B92: 39 | D92: 1 | J92: =H10+38*(U10*X10+AL10) -> 19:13:00 | O92: =$P$39 -> <Team> | AE92: - | AF92: =$P$37 -> <Team> | AY92: : | BD92: : | BG92: 0 | BH92: : | BI92: 0
B93: 40 | D93: 1 | J93: =H10+39*(U10*X10+AL10) -> 19:24:00 | O93: =$P$45 -> <Team> | AE93: - | AF93: =$P$47 -> <Team> | AY93: : | BD93: : | BG93: 0 | BH93: : | BI93: 0
B94: 41 | D94: 1 | J94: =H10+40*(U10*X10+AL10) -> 19:35:00 | O94: =$P$16 -> <Team> | AE94: - | AF94: =$P$23 -> <Team> | AY94: : | BD94: : | BG94: 0 | BH94: : | BI94: 0
B95: 42 | D95: 1 | J95: =H10+41*(U10*X10+AL10) -> 19:46:00 | O95: =$P$31 -> <Team> | AE95: - | AF95: =$P$29 -> <Team> | AY95: : | BD95: : | BG95: 0 | BH95: : | BI95: 0
B96: 43 | D96: 1 | J96: =H10+42*(U10*X10+AL10) -> 19:57:00 | O96: =$P$36 -> <Team> | AE96: - | AF96: =$P$37 -> <Team> | AY96: : | BD96: : | BG96: 0 | BH96: : | BI96: 0
B97: 44 | D97: 1 | J97: =H10+43*(U10*X10+AL10) -> 20:08:00 | O97: =$P$44 -> <Team> | AE97: - | AF97: =$P$48 -> <Team> | AY97: : | BD97: : | BG97: 0 | BH97: : | BI97: 0
B98: 45 | D98: 1 | J98: =H10+44*(U10*X10+AL10) -> 20:19:00 | O98: =$P$24 -> <Team> | AE98: - | AF98: =$P$22 -> <Team> | AY98: : | BD98: : | BG98: 0 | BH98: : | BI98: 0
B99: 46 | D99: 1 | J99: =H10+45*(U10*X10+AL10) -> 20:30:00 | O99: =$P$32 -> <Team> | AE99: - | AF99: =$P$33 -> <Team> | AY99: : | BD99: : | BG99: 0 | BH99: : | BI99: 0
B100: 47 | D100: 1 | J100: =H10+46*(U10*X10+AL10) -> 20:41:00 | O100: =$P$38 -> <Team> | AE100: - | AF100: =$P$39 -> <Team> | AY100: : | BD100: : | BG100: 0 | BH100: : | BI100: 0
B101: 48 | D101: 1 | J101: =H10+47*(U10*X10+AL10) -> 20:52:00 | O101: =$P$42 -> <Team> | AE101: - | AF101: =$P$46 -> <Team> | AY101: : | BD101: : | BG101: 0 | BH101: : | BI101: 0
B102: 49 | D102: 1 | J102: =H10+48*(U10*X10+AL10) -> 21:03:00 | O102: =$P$25 -> <Team> | AE102: - | AF102: =$P$21 -> <Team> | AY102: : | BD102: : | BG102: 0 | BH102: : | BI102: 0
B103: 50 | D103: 1 | J103: =H10+49*(U10*X10+AL10) -> 21:14:00 | O103: =$P$28 -> <Team> | AE103: - | AF103: =$P$29 -> <Team> | AY103: : | BD103: : | BG103: 0 | BH103: : | BI103: 0
B104: 51 | D104: 1 | J104: =H10+50*(U10*X10+AL10) -> 21:25:00 | O104: =$P$43 -> <Team> | AE104: - | AF104: =$P$47 -> <Team> | AY104: : | BD104: : | BG104: 0 | BH104: : | BI104: 0
B105: 52 | D105: 1 | J105: =H10+51*(U10*X10+AL10) -> 21:36:00 | O105: =$P$17 -> <Team> | AE105: - | AF105: =$P$20 -> <Team> | AY105: : | BD105: : | BG105: 0 | BH105: : | BI105: 0
B106: 53 | D106: 1 | J106: =H10+52*(U10*X10+AL10) -> 21:47:00 | O106: =$P$30 -> <Team> | AE106: - | AF106: =$P$33 -> <Team> | AY106: : | BD106: : | BG106: 0 | BH106: : | BI106: 0
B107: 54 | D107: 1 | J107: =H10+53*(U10*X10+AL10) -> 21:58:00 | O107: =$P$45 -> <Team> | AE107: - | AF107: =$P$48 -> <Team> | AY107: : | BD107: : | BG107: 0 | BH107: : | BI107: 0
B108: 55 | D108: 1 | J108: =H10+54*(U10*X10+AL10) -> 22:09:00 | O108: =$P$18 -> <Team> | AE108: - | AF108: =$P$19 -> <Team> | AY108: : | BD108: : | BG108: 0 | BH108: : | BI108: 0
B109: 56 | D109: 1 | J109: =H10+55*(U10*X10+AL10) -> 22:20:00 | O109: =$P$31 -> <Team> | AE109: - | AF109: =$P$32 -> <Team> | AY109: : | BD109: : | BG109: 0 | BH109: : | BI109: 0
B110: 57 | D110: 1 | J110: =H10+56*(U10*X10+AL10) -> 22:31:00 | O110: =$P$44 -> <Team> | AE110: - | AF110: =$P$46 -> <Team> | AY110: : | BD110: : | BG110: 0 | BH110: : | BI110: 0
B111: 58 | D111: 1 | J111: =H10+57*(U10*X10+AL10) -> 22:42:00 | O111: =$P$16 -> <Team> | AE111: - | AF111: =$P$22 -> <Team> | AY111: : | BD111: : | BG111: 0 | BH111: : | BI111: 0
B112: 59 | D112: 1 | J112: =H10+58*(U10*X10+AL10) -> 22:53:00 | O112: =$P$28 -> <Team> | AE112: - | AF112: =$P$33 -> <Team> | AY112: : | BD112: : | BG112: 0 | BH112: : | BI112: 0
B113: 60 | D113: 1 | J113: =H10+59*(U10*X10+AL10) -> 23:04:00 | O113: =$P$42 -> <Team> | AE113: - | AF113: =$P$47 -> <Team> | AY113: : | BD113: : | BG113: 0 | BH113: : | BI113: 0
B114: 61 | D114: 1 | J114: =H10+60*(U10*X10+AL10) -> 23:15:00 | O114: =$P$23 -> <Team> | AE114: - | AF114: =$P$21 -> <Team> | AY114: : | BD114: : | BG114: 0 | BH114: : | BI114: 0
B115: 62 | D115: 1 | J115: =H10+61*(U10*X10+AL10) -> 23:26:00 | O115: =$P$29 -> <Team> | AE115: - | AF115: =$P$32 -> <Team> | AY115: : | BD115: : | BG115: 0 | BH115: : | BI115: 0
B116: 63 | D116: 1 | J116: =H10+62*(U10*X10+AL10) -> 23:37:00 | O116: =$P$43 -> <Team> | AE116: - | AF116: =$P$45 -> <Team> | AY116: : | BD116: : | BG116: 0 | BH116: : | BI116: 0
B117: 64 | D117: 1 | J117: =H10+63*(U10*X10+AL10) -> 23:48:00 | O117: =$P$24 -> <Team> | AE117: - | AF117: =$P$20 -> <Team> | AY117: : | BD117: : | BG117: 0 | BH117: : | BI117: 0
B118: 65 | D118: 1 | J118: =H10+64*(U10*X10+AL10) -> 23:59:00 | O118: =$P$30 -> <Team> | AE118: - | AF118: =$P$31 -> <Team> | AY118: : | BD118: : | BG118: =IF(ISBLANK(AW118),"0",IF(AW118>AZ118,3,IF(AW118=AZ118,1,0))) + BB118 -> 0 | BH118: : | BI118: =IF(ISBLANK(AZ118),"0",IF(AZ118>AW118,3,IF(AZ118=AW118,1,0))) + BE118 -> 0
B119: 66 | D119: 1 | J119: =H10+65*(U10*X10+AL10) -> 1.006944444 | O119: =$P$46 -> <Team> | AE119: - | AF119: =$P$48 -> <Team> | AY119: : | BD119: : | BG119: 0 | BH119: : | BI119: 0
B120: 67 | D120: 1 | J120: =H10+66*(U10*X10+AL10) -> 1.014583333 | O120: =$P$25 -> <Team> | AE120: - | AF120: =$P$19 -> <Team> | AY120: : | BD120: : | BG120: 0 | BH120: : | BI120: 0
B121: 68 | D121: 1 | J121: =H10+67*(U10*X10+AL10) -> 1.022222222 | O121: =$P$28 -> <Team> | AE121: - | AF121: =$P$32 -> <Team> | AY121: : | BD121: : | BG121: 0 | BH121: : | BI121: 0
B122: 69 | D122: 1 | J122: =H10+68*(U10*X10+AL10) -> 1.029861111 | O122: =$P$44 -> <Team> | AE122: - | AF122: =$P$47 -> <Team> | AY122: : | BD122: : | BG122: 0 | BH122: : | BI122: 0
B123: 70 | D123: 1 | J123: =H10+69*(U10*X10+AL10) -> 1.0375 | O123: =$P$17 -> <Team> | AE123: - | AF123: =$P$18 -> <Team> | AY123: : | BD123: : | BG123: 0 | BH123: : | BI123: 0
B124: 71 | D124: 1 | J124: =H10+70*(U10*X10+AL10) -> 1.045138889 | O124: =$P$33 -> <Team> | AE124: - | AF124: =$P$31 -> <Team> | AY124: : | BD124: : | BG124: 0 | BH124: : | BI124: 0
B125: 72 | D125: 1 | J125: =H10+71*(U10*X10+AL10) -> 1.052777778 | O125: =$P$42 -> <Team> | AE125: - | AF125: =$P$45 -> <Team> | AY125: : | BD125: : | BG125: 0 | BH125: : | BI125: 0
B126: 73 | D126: 1 | J126: =H10+72*(U10*X10+AL10) -> 1.060416667 | O126: =$P$16 -> <Team> | AE126: - | AF126: =$P$21 -> <Team> | AY126: : | BD126: : | BG126: 0 | BH126: : | BI126: 0
B127: 74 | D127: 1 | J127: =H10+73*(U10*X10+AL10) -> 1.068055556 | O127: =$P$29 -> <Team> | AE127: - | AF127: =$P$30 -> <Team> | AY127: : | BD127: : | BG127: 0 | BH127: : | BI127: 0
B128: 75 | D128: 1 | J128: =H10+74*(U10*X10+AL10) -> 1.075694444 | O128: =$P$43 -> <Team> | AE128: - | AF128: =$P$48 -> <Team> | AY128: : | BD128: : | BG128: 0 | BH128: : | BI128: 0
B129: 76 | D129: 1 | J129: =H10+75*(U10*X10+AL10) -> 1.083333333 | O129: =$P$22 -> <Team> | AE129: - | AF129: =$P$20 -> <Team> | AY129: : | BD129: : | BG129: 0 | BH129: : | BI129: 0
B130: 77 | D130: 1 | J130: =H10+76*(U10*X10+AL10) -> 1.090972222 | O130: =$P$28 -> <Team> | AE130: - | AF130: =$P$31 -> <Team> | AY130: : | BD130: : | BG130: 0 | BH130: : | BI130: 0
B131: 78 | D131: 1 | J131: =H10+77*(U10*X10+AL10) -> 1.098611111 | O131: =$P$42 -> <Team> | AE131: - | AF131: =$P$43 -> <Team> | AY131: : | BD131: : | BG131: 0 | BH131: : | BI131: 0
B132: 79 | D132: 1 | J132: =H10+78*(U10*X10+AL10) -> 1.10625 | O132: =$P$23 -> <Team> | AE132: - | AF132: =$P$19 -> <Team> | AY132: : | BD132: : | BG132: 0 | BH132: : | BI132: 0
B133: 80 | D133: 1 | J133: =H10+79*(U10*X10+AL10) -> 1.113888889 | O133: =$P$32 -> <Team> | AE133: - | AF133: =$P$30 -> <Team> | AY133: : | BD133: : | BG133: 0 | BH133: : | BI133: 0
B134: 81 | D134: 1 | J134: =H10+80*(U10*X10+AL10) -> 1.121527778 | O134: =$P$44 -> <Team> | AE134: - | AF134: =$P$45 -> <Team> | AY134: : | BD134: : | BG134: 0 | BH134: : | BI134: 0
B135: 82 | D135: 1 | J135: =H10+81*(U10*X10+AL10) -> 1.129166667 | O135: =$P$24 -> <Team> | AE135: - | AF135: =$P$18 -> <Team> | AY135: : | BD135: : | BG135: 0 | BH135: : | BI135: 0
B136: 83 | D136: 1 | J136: =H10+82*(U10*X10+AL10) -> 1.136805556 | O136: =$P$33 -> <Team> | AE136: - | AF136: =$P$29 -> <Team> | AY136: : | BD136: : | BG136: 0 | BH136: : | BI136: 0
B137: 84 | D137: 1 | J137: =H10+83*(U10*X10+AL10) -> 1.144444444 | O137: =$P$46 -> <Team> | AE137: - | AF137: =$P$47 -> <Team> | AY137: : | BD137: : | BG137: 0 | BH137: : | BI137: 0
B138: 85 | D138: 1 | J138: =H10+84*(U10*X10+AL10) -> 1.152083333 | O138: =$P$25 -> <Team> | AE138: - | AF138: =$P$17 -> <Team> | AY138: : | BD138: : | BG138: 0 | BH138: : | BI138: 0
B139: 86 | D139: 1 | J139: =H10+85*(U10*X10+AL10) -> 1.159722222 | O139: =$P$28 -> <Team> | AE139: - | AF139: =$P$30 -> <Team> | AY139: : | BD139: : | BG139: 0 | BH139: : | BI139: 0
B140: 87 | D140: 1 | J140: =H10+86*(U10*X10+AL10) -> 1.167361111 | O140: =$P$42 -> <Team> | AE140: - | AF140: =$P$48 -> <Team> | AY140: : | BD140: : | BG140: 0 | BH140: : | BI140: 0
B141: 88 | D141: 1 | J141: =H10+87*(U10*X10+AL10) -> 1.175 | O141: =$P$16 -> <Team> | AE141: - | AF141: =$P$20 -> <Team> | AY141: : | BD141: : | BG141: 0 | BH141: : | BI141: 0
B142: 89 | D142: 1 | J142: =H10+88*(U10*X10+AL10) -> 1.182638889 | O142: =$P$31 -> <Team> | AE142: - | AF142: =$P$29 -> <Team> | AY142: : | BD142: : | BG142: 0 | BH142: : | BI142: 0
B143: 90 | D143: 1 | J143: =H10+89*(U10*X10+AL10) -> 1.190277778 | O143: =$P$43 -> <Team> | AE143: - | AF143: =$P$44 -> <Team> | AY143: : | BD143: : | BG143: 0 | BH143: : | BI143: 0
B144: 91 | D144: 1 | J144: =H10+90*(U10*X10+AL10) -> 1.197916667 | O144: =$P$21 -> <Team> | AE144: - | AF144: =$P$19 -> <Team> | AY144: : | BD144: : | BG144: 0 | BH144: : | BI144: 0
B145: 92 | D145: 1 | J145: =H10+91*(U10*X10+AL10) -> 1.205555556 | O145: =$P$32 -> <Team> | AE145: - | AF145: =$P$33 -> <Team> | AY145: : | BD145: : | BG145: 0 | BH145: : | BI145: 0
B146: 93 | D146: 1 | J146: =H10+92*(U10*X10+AL10) -> 1.213194444 | O146: =$P$45 -> <Team> | AE146: - | AF146: =$P$46 -> <Team> | AY146: : | BD146: : | BG146: 0 | BH146: : | BI146: 0
B147: 94 | D147: 1 | J147: =H10+93*(U10*X10+AL10) -> 1.220833333 | O147: =$P$22 -> <Team> | AE147: - | AF147: =$P$18 -> <Team> | AY147: : | BD147: : | BG147: 0 | BH147: : | BI147: 0
B148: 95 | D148: 1 | J148: =H10+94*(U10*X10+AL10) -> 1.228472222 | O148: =$P$28 -> <Team> | AE148: - | AF148: =$P$29 -> <Team> | AY148: : | BD148: : | BG148: 0 | BH148: : | BI148: 0
B149: 96 | D149: 1 | J149: =H10+95*(U10*X10+AL10) -> 1.236111111 | O149: =$P$47 -> <Team> | AE149: - | AF149: =$P$48 -> <Team> | AY149: : | BD149: : | BG149: 0 | BH149: : | BI149: 0
B150: 97 | D150: 1 | J150: =H10+96*(U10*X10+AL10) -> 1.24375 | O150: =$P$23 -> <Team> | AE150: - | AF150: =$P$17 -> <Team> | AY150: : | BD150: : | BG150: =IF(ISBLANK(AW150),"0",IF(AW150>AZ150,3,IF(AW150=AZ150,1,0))) + BB150 -> 0 | BH150: : | BI150: =IF(ISBLANK(AZ150),"0",IF(AZ150>AW150,3,IF(AZ150=AW150,1,0))) + BE150 -> 0
B151: 98 | D151: 1 | J151: =H10+97*(U10*X10+AL10) -> 1.251388889 | O151: =$P$30 -> <Team> | AE151: - | AF151: =$P$33 -> <Team> | AY151: : | BD151: : | BG151: 0 | BH151: : | BI151: 0
B152: 99 | D152: 1 | J152: =H10+98*(U10*X10+AL10) -> 1.259027778 | O152: =$P$42 -> <Team> | AE152: - | AF152: =$P$44 -> <Team> | AY152: : | BD152: : | BG152: 0 | BH152: : | BI152: 0
B153: 100 | D153: 1 | J153: =H10+99*(U10*X10+AL10) -> 1.266666667 | O153: =$P$24 -> <Team> | AE153: - | AF153: =$P$25 -> <Team> | AY153: : | BD153: : | BG153: 0 | BH153: : | BI153: 0
B154: 101 | D154: 1 | J154: =H10+100*(U10*X10+AL10) -> 1.274305556 | O154: =$P$31 -> <Team> | AE154: - | AF154: =$P$32 -> <Team> | AY154: : | BD154: : | BG154: 0 | BH154: : | BI154: 0
B155: 102 | D155: 1 | J155: =H10+101*(U10*X10+AL10) -> 1.281944444 | O155: =$P$43 -> <Team> | AE155: - | AF155: =$P$46 -> <Team> | AY155: : | BD155: : | BG155: 0 | BH155: : | BI155: 0
B156: 103 | D156: 1 | J156: =H10+102*(U10*X10+AL10) -> 1.289583333 | O156: =$P$16 -> <Team> | AE156: - | AF156: =$P$19 -> <Team> | AY156: : | BD156: : | BG156: 0 | BH156: : | BI156: 0
B157: 104 | D157: 1 | J157: =H10+103*(U10*X10+AL10) -> 1.297222222 | O157: =$P$45 -> <Team> | AE157: - | AF157: =$P$47 -> <Team> | AY157: : | BD157: : | BG157: 0 | BH157: : | BI157: 0
B158: 105 | D158: 1 | J158: =H10+104*(U10*X10+AL10) -> 1.304861111 | O158: =$P$20 -> <Team> | AE158: - | AF158: =$P$18 -> <Team> | AY158: : | BD158: : | BG158: 0 | BH158: : | BI158: 0
B159: 106 | D159: 1 | J159: =H10+105*(U10*X10+AL10) -> 1.3125 | O159: =$P$44 -> <Team> | AE159: - | AF159: =$P$48 -> <Team> | AY159: : | BD159: : | BG159: 0 | BH159: : | BI159: 0
B160: 107 | D160: 1 | J160: =H10+106*(U10*X10+AL10) -> 1.320138889 | O160: =$P$21 -> <Team> | AE160: - | AF160: =$P$17 -> <Team> | AY160: : | BD160: : | BG160: 0 | BH160: : | BI160: 0
B161: 108 | D161: 1 | J161: =H10+107*(U10*X10+AL10) -> 1.327777778 | O161: =$P$42 -> <Team> | AE161: - | AF161: =$P$46 -> <Team> | AY161: : | BD161: : | BG161: 0 | BH161: : | BI161: 0
B162: 109 | D162: 1 | J162: =H10+108*(U10*X10+AL10) -> 1.335416667 | O162: =$P$22 -> <Team> | AE162: - | AF162: =$P$25 -> <Team> | AY162: : | BD162: : | BG162: 0 | BH162: : | BI162: 0
B163: 110 | D163: 1 | J163: =H10+109*(U10*X10+AL10) -> 1.343055556 | O163: =$P$43 -> <Team> | AE163: - | AF163: =$P$47 -> <Team> | AY163: : | BD163: : | BG163: 0 | BH163: : | BI163: 0
B164: 111 | D164: 1 | J164: =H10+110*(U10*X10+AL10) -> 1.350694444 | O164: =$P$23 -> <Team> | AE164: - | AF164: =$P$24 -> <Team> | AY164: : | BD164: : | BG164: 0 | BH164: : | BI164: 0
B165: 112 | D165: 1 | J165: =H10+111*(U10*X10+AL10) -> 1.358333333 | O165: =$P$45 -> <Team> | AE165: - | AF165: =$P$48 -> <Team> | AY165: : | BD165: : | BG165: 0 | BH165: : | BI165: 0
B166: 113 | D166: 1 | J166: =H10+112*(U10*X10+AL10) -> 1.365972222 | O166: =$P$16 -> <Team> | AE166: - | AF166: =$P$18 -> <Team> | AY166: : | BD166: : | BG166: 0 | BH166: : | BI166: 0
B167: 114 | D167: 1 | J167: =H10+113*(U10*X10+AL10) -> 1.373611111 | O167: =$P$44 -> <Team> | AE167: - | AF167: =$P$46 -> <Team> | AY167: : | BD167: : | BG167: 0 | BH167: : | BI167: 0
B168: 115 | D168: 1 | J168: =H10+114*(U10*X10+AL10) -> 1.38125 | O168: =$P$19 -> <Team> | AE168: - | AF168: =$P$17 -> <Team> | AY168: : | BD168: : | BG168: 0 | BH168: : | BI168: 0
B169: 116 | D169: 1 | J169: =H10+115*(U10*X10+AL10) -> 1.388888889 | O169: =$P$42 -> <Team> | AE169: - | AF169: =$P$47 -> <Team> | AY169: : | BD169: : | BG169: 0 | BH169: : | BI169: 0
B170: 117 | D170: 1 | J170: =H10+116*(U10*X10+AL10) -> 1.396527778 | O170: =$P$20 -> <Team> | AE170: - | AF170: =$P$25 -> <Team> | AY170: : | BD170: : | BG170: 0 | BH170: : | BI170: 0
B171: 118 | D171: 1 | J171: =H10+117*(U10*X10+AL10) -> 1.404166667 | O171: =$P$43 -> <Team> | AE171: - | AF171: =$P$45 -> <Team> | AY171: : | BD171: : | BG171: 0 | BH171: : | BI171: 0
B172: 119 | D172: 1 | J172: =H10+118*(U10*X10+AL10) -> 1.411805556 | O172: =$P$21 -> <Team> | AE172: - | AF172: =$P$24 -> <Team> | AY172: : | BD172: : | BG172: 0 | BH172: : | BI172: 0
B173: 120 | D173: 1 | J173: =H10+119*(U10*X10+AL10) -> 1.419444444 | O173: =$P$46 -> <Team> | AE173: - | AF173: =$P$48 -> <Team> | AY173: : | BD173: : | BG173: 0 | BH173: : | BI173: 0
B174: 121 | D174: 1 | J174: =H10+120*(U10*X10+AL10) -> 1.427083333 | O174: =$P$22 -> <Team> | AE174: - | AF174: =$P$23 -> <Team> | AY174: : | BD174: : | BG174: 0 | BH174: : | BI174: 0
B175: 122 | D175: 1 | J175: =H10+121*(U10*X10+AL10) -> 1.434722222 | O175: =$P$44 -> <Team> | AE175: - | AF175: =$P$47 -> <Team> | AY175: : | BD175: : | BG175: 0 | BH175: : | BI175: 0
B176: 123 | D176: 1 | J176: =H10+122*(U10*X10+AL10) -> 1.442361111 | O176: =$P$16 -> <Team> | AE176: - | AF176: =$P$17 -> <Team> | AY176: : | BD176: : | BG176: 0 | BH176: : | BI176: 0
B177: 124 | D177: 1 | J177: =H10+123*(U10*X10+AL10) -> 1.45 | O177: =$P$42 -> <Team> | AE177: - | AF177: =$P$45 -> <Team> | AY177: : | BD177: : | BG177: 0 | BH177: : | BI177: 0
B178: 125 | D178: 1 | J178: =H10+124*(U10*X10+AL10) -> 1.457638889 | O178: =$P$18 -> <Team> | AE178: - | AF178: =$P$25 -> <Team> | AY178: : | BD178: : | BG178: 0 | BH178: : | BI178: 0
B179: 126 | D179: 1 | J179: =H10+125*(U10*X10+AL10) -> 1.465277778 | O179: =$P$43 -> <Team> | AE179: - | AF179: =$P$48 -> <Team> | AY179: : | BD179: : | BG179: 0 | BH179: : | BI179: 0
B180: 127 | D180: 1 | J180: =H10+126*(U10*X10+AL10) -> 1.472916667 | O180: =$P$19 -> <Team> | AE180: - | AF180: =$P$24 -> <Team> | AY180: : | BD180: : | BG180: 0 | BH180: : | BI180: 0
B181: 128 | D181: 1 | J181: =H10+127*(U10*X10+AL10) -> 1.480555556 | O181: =$P$20 -> <Team> | AE181: - | AF181: =$P$23 -> <Team> | AY181: : | BD181: : | BG181: 0 | BH181: : | BI181: 0
B182: 129 | D182: 1 | J182: =H10+128*(U10*X10+AL10) -> 1.488194444 | O182: =$P$21 -> <Team> | AE182: - | AF182: =$P$22 -> <Team> | AY182: : | BD182: : | BG182: =IF(ISBLANK(AW182),"0",IF(AW182>AZ182,3,IF(AW182=AZ182,1,0))) + BB182 -> 0 | BH182: : | BI182: =IF(ISBLANK(AZ182),"0",IF(AZ182>AW182,3,IF(AZ182=AW182,1,0))) + BE182 -> 0
B183: 130 | D183: 1 | J183: =H10+129*(U10*X10+AL10) -> 1.495833333 | O183: =$P$16 -> <Team> | AE183: - | AF183: =$P$25 -> <Team> | AY183: : | BD183: : | BG183: 0 | BH183: : | BI183: 0
B184: 131 | D184: 1 | J184: =H10+130*(U10*X10+AL10) -> 1.503472222 | O184: =$P$17 -> <Team> | AE184: - | AF184: =$P$24 -> <Team> | AY184: : | BD184: : | BG184: 0 | BH184: : | BI184: 0
B185: 132 | D185: 1 | J185: =H10+131*(U10*X10+AL10) -> 1.511111111 | O185: =$P$18 -> <Team> | AE185: - | AF185: =$P$23 -> <Team> | AY185: : | BD185: : | BG185: 0 | BH185: : | BI185: 0
B186: 133 | D186: 1 | J186: =H10+132*(U10*X10+AL10) -> 1.51875 | O186: =$P$19 -> <Team> | AE186: - | AF186: =$P$22 -> <Team> | AY186: : | BD186: : | BG186: 0 | BH186: : | BI186: 0
B187: 134 | D187: 1 | J187: =H10+133*(U10*X10+AL10) -> 1.526388889 | O187: =$P$20 -> <Team> | AE187: - | AF187: =$P$21 -> <Team> | AY187: : | BD187: : | BG187: 0 | BH187: : | BI187: 0
B188: 135 | D188: 1 | J188: =H10+134*(U10*X10+AL10) -> 1.534027778 | O188: =$P$16 -> <Team> | AE188: - | AF188: =$P$24 -> <Team> | AY188: : | BD188: : | BG188: 0 | BH188: : | BI188: 0
B189: 136 | D189: 1 | J189: =H10+135*(U10*X10+AL10) -> 1.541666667 | O189: =$P$25 -> <Team> | AE189: - | AF189: =$P$23 -> <Team> | AY189: : | BD189: : | BG189: 0 | BH189: : | BI189: 0
B190: 137 | D190: 1 | J190: =H10+136*(U10*X10+AL10) -> 1.549305556 | O190: =$P$17 -> <Team> | AE190: - | AF190: =$P$22 -> <Team> | AY190: : | BD190: : | BG190: 0 | BH190: : | BI190: 0
B191: 138 | D191: 1 | J191: =H10+137*(U10*X10+AL10) -> 1.556944444 | O191: =$P$18 -> <Team> | AE191: - | AF191: =$P$21 -> <Team> | AY191: : | BD191: : | BG191: 0 | BH191: : | BI191: 0
B192: 139 | D192: 1 | J192: =H10+138*(U10*X10+AL10) -> 1.564583333 | O192: =$P$19 -> <Team> | AE192: - | AF192: =$P$20 -> <Team> | AY192: : | BD192: : | BG192: 0 | BH192: : | BI192: 0
B193: 140 | D193: 1 | J193: =H10+139*(U10*X10+AL10) -> 1.572222222 | O193: =$P$16 -> <Team> | AE193: - | AF193: =$P$23 -> <Team> | AY193: : | BD193: : | BG193: 0 | BH193: : | BI193: 0
B194: 141 | D194: 1 | J194: =H10+140*(U10*X10+AL10) -> 1.579861111 | O194: =$P$24 -> <Team> | AE194: - | AF194: =$P$22 -> <Team> | AY194: : | BD194: : | BG194: 0 | BH194: : | BI194: 0
B195: 142 | D195: 1 | J195: =H10+141*(U10*X10+AL10) -> 1.5875 | O195: =$P$25 -> <Team> | AE195: - | AF195: =$P$21 -> <Team> | AY195: : | BD195: : | BG195: 0 | BH195: : | BI195: 0
B196: 143 | D196: 1 | J196: =H10+142*(U10*X10+AL10) -> 1.595138889 | O196: =$P$17 -> <Team> | AE196: - | AF196: =$P$20 -> <Team> | AY196: : | BD196: : | BG196: 0 | BH196: : | BI196: 0
B197: 144 | D197: 1 | J197: =H10+143*(U10*X10+AL10) -> 1.602777778 | O197: =$P$18 -> <Team> | AE197: - | AF197: =$P$19 -> <Team> | AY197: : | BD197: : | BG197: 0 | BH197: : | BI197: 0
B198: 145 | D198: 1 | J198: =H10+144*(U10*X10+AL10) -> 1.610416667 | O198: =$P$16 -> <Team> | AE198: - | AF198: =$P$22 -> <Team> | AY198: : | BD198: : | BG198: 0 | BH198: : | BI198: 0
B199: 146 | D199: 1 | J199: =H10+145*(U10*X10+AL10) -> 1.618055556 | O199: =$P$23 -> <Team> | AE199: - | AF199: =$P$21 -> <Team> | AY199: : | BD199: : | BG199: 0 | BH199: : | BI199: 0
B200: 147 | D200: 1 | J200: =H10+146*(U10*X10+AL10) -> 1.625694444 | O200: =$P$24 -> <Team> | AE200: - | AF200: =$P$20 -> <Team> | AY200: : | BD200: : | BG200: 0 | BH200: : | BI200: 0
B201: 148 | D201: 1 | J201: =H10+147*(U10*X10+AL10) -> 1.633333333 | O201: =$P$25 -> <Team> | AE201: - | AF201: =$P$19 -> <Team> | AY201: : | BD201: : | BG201: 0 | BH201: : | BI201: 0
B202: 149 | D202: 1 | J202: =H10+148*(U10*X10+AL10) -> 1.640972222 | O202: =$P$17 -> <Team> | AE202: - | AF202: =$P$18 -> <Team> | AY202: : | BD202: : | BG202: 0 | BH202: : | BI202: 0
B203: 150 | D203: 1 | J203: =H10+149*(U10*X10+AL10) -> 1.648611111 | O203: =$P$16 -> <Team> | AE203: - | AF203: =$P$21 -> <Team> | AY203: : | BD203: : | BG203: 0 | BH203: : | BI203: 0
B204: 151 | D204: 1 | J204: =H10+150*(U10*X10+AL10) -> 1.65625 | O204: =$P$22 -> <Team> | AE204: - | AF204: =$P$20 -> <Team> | AY204: : | BD204: : | BG204: 0 | BH204: : | BI204: 0
B205: 152 | D205: 1 | J205: =H10+151*(U10*X10+AL10) -> 1.663888889 | O205: =$P$23 -> <Team> | AE205: - | AF205: =$P$19 -> <Team> | AY205: : | BD205: : | BG205: 0 | BH205: : | BI205: 0
B206: 153 | D206: 1 | J206: =H10+152*(U10*X10+AL10) -> 1.671527778 | O206: =$P$24 -> <Team> | AE206: - | AF206: =$P$18 -> <Team> | AY206: : | BD206: : | BG206: 0 | BH206: : | BI206: 0
B207: 154 | D207: 1 | J207: =H10+153*(U10*X10+AL10) -> 1.679166667 | O207: =$P$25 -> <Team> | AE207: - | AF207: =$P$17 -> <Team> | AY207: : | BD207: : | BG207: 0 | BH207: : | BI207: 0
B208: 155 | D208: 1 | J208: =H10+154*(U10*X10+AL10) -> 1.686805556 | O208: =$P$16 -> <Team> | AE208: - | AF208: =$P$20 -> <Team> | AY208: : | BD208: : | BG208: 0 | BH208: : | BI208: 0
B209: 156 | D209: 1 | J209: =H10+155*(U10*X10+AL10) -> 1.694444444 | O209: =$P$21 -> <Team> | AE209: - | AF209: =$P$19 -> <Team> | AY209: : | BD209: : | BG209: 0 | BH209: : | BI209: 0
B210: 157 | D210: 1 | J210: =H10+156*(U10*X10+AL10) -> 1.702083333 | O210: =$P$22 -> <Team> | AE210: - | AF210: =$P$18 -> <Team> | AY210: : | BD210: : | BG210: 0 | BH210: : | BI210: 0
B211: 158 | D211: 1 | J211: =H10+157*(U10*X10+AL10) -> 1.709722222 | O211: =$P$23 -> <Team> | AE211: - | AF211: =$P$17 -> <Team> | AY211: : | BD211: : | BG211: 0 | BH211: : | BI211: 0
B212: 159 | D212: 1 | J212: =H10+158*(U10*X10+AL10) -> 1.717361111 | O212: =$P$24 -> <Team> | AE212: - | AF212: =$P$25 -> <Team> | AY212: : | BD212: : | BG212: 0 | BH212: : | BI212: 0
B213: 160 | D213: 1 | J213: =H10+159*(U10*X10+AL10) -> 1.725 | O213: =$P$16 -> <Team> | AE213: - | AF213: =$P$19 -> <Team> | AY213: : | BD213: : | BG213: 0 | BH213: : | BI213: 0
... 32 more rows

Sheet Spielplan 1
BH1: $BH$47:$BN$50 | BI1: $BH$53:$BN$56
A2: Strassenfussball Turnier
A3: StrassenSportBasel
F6: Kategorie: | M6: 1 | U6: am: | Y6: Datum
N8: Ort: | Q8: Ort
G10: Beginn: | H10: 12:15:00 | M10: Uhr | T10: Spielzeit: | U10: 1 | V10: 1x | W10: x | X10: 00:08:00 | AC10: min | AK10: Pause: | AL10: 00:03:00 | AQ10: min
B13: I. Teilnehmende Teams
L15: <Gruppe 1>
L16: 1 | P16: <Team>
L17: 2 | P17: <Team>
L18: 3 | P18: <Team>
L19: 4 | P19: <Team>
L21: <Gruppe 1>
L22: 5 | P22: <Team>
L23: 6 | P23: <Team>
L24: 7 | P24: <Team>
L25: 8 | P25: <Team>
B28: II. Spielplan
B30: Nr. | D30: Platz | J30: Beginn | O30: Spielpaarung | AW30: Ergebnis | BB30: Fairplay | BG30: Punkte
B31: 1 | D31: 1 | J31: =H10+0*(U10*X10+AL10) -> 12:15:00 | O31: =$P$16 -> <Team> | AE31: - | AF31: =$P$19 -> <Team> | AY31: : | BD31: : | BG31: =IF(ISBLANK(AW31),"0",IF(AW31>AZ31,3,IF(AW31=AZ31,1,0))) + BB31 -> 0 | BH31: : | BI31: =IF(ISBLANK(AZ31),"0",IF(AZ31>AW31,3,IF(AZ31=AW31,1,0))) + BE31 -> 0
B32: 2 | D32: 1 | J32: =H10+1*(U10*X10+AL10) -> 12:26:00 | O32: =$P$22 -> <Team> | AE32: - | AF32: =$P$25 -> <Team> | AY32: : | BD32: : | BG32: 0 | BH32: : | BI32: 0
B33: 3 | D33: 1 | J33: =H10+2*(U10*X10+AL10) -> 12:37:00 | O33: =$P$17 -> <Team> | AE33: - | AF33: =$P$18 -> <Team> | AY33: : | BD33: : | BG33: 0 | BH33: : | BI33: 0
B34: 4 | D34: 1 | J34: =H10+3*(U10*X10+AL10) -> 12:48:00 | O34: =$P$23 -> <Team> | AE34: - | AF34: =$P$24 -> <Team> | AY34: : | BD34: : | BG34: 0 | BH34: : | BI34: 0
B35: 5 | D35: 1 | J35: =H10+4*(U10*X10+AL10) -> 12:59:00 | O35: =$P$16 -> <Team> | AE35: - | AF35: =$P$18 -> <Team> | AY35: : | BD35: : | BG35: 0 | BH35: : | BI35: 0
B36: 6 | D36: 1 | J36: =H10+5*(U10*X10+AL10) -> 13:10:00 | O36: =$P$22 -> <Team> | AE36: - | AF36: =$P$24 -> <Team> | AY36: : | BD36: : | BG36: 0 | BH36: : | BI36: 0
B37: 7 | D37: 1 | J37: =H10+6*(U10*X10+AL10) -> 13:21:00 | O37: =$P$19 -> <Team> | AE37: - | AF37: =$P$17 -> <Team> | AY37: : | BD37: : | BG37: 0 | BH37: : | BI37: 0
B38: 8 | D38: 1 | J38: =H10+7*(U10*X10+AL10) -> 13:32:00 | O38: =$P$25 -> <Team> | AE38: - | AF38: =$P$23 -> <Team> | AY38: : | BD38: : | BG38: 0 | BH38: : | BI38: 0
B39: 9 | D39: 1 | J39: =H10+8*(U10*X10+AL10) -> 13:43:00 | O39: =$P$16 -> <Team> | AE39: - | AF39: =$P$17 -> <Team> | AY39: : | BD39: : | BG39: 0 | BH39: : | BI39: 0
B40: 10 | D40: 1 | J40: =H10+9*(U10*X10+AL10) -> 13:54:00 | O40: =$P$22 -> <Team> | AE40: - | AF40: =$P$23 -> <Team> | AY40: : | BD40: : | BG40: 0 | BH40: : | BI40: 0
B41: 11 | D41: 1 | J41: =H10+10*(U10*X10+AL10) -> 14:05:00 | O41: =$P$18 -> <Team> | AE41: - | AF41: =$P$19 -> <Team> | AY41: : | BD41: : | BG41: 0 | BH41: : | BI41: 0
B42: 12 | D42: 1 | J42: =H10+11*(U10*X10+AL10) -> 14:16:00 | O42: =$P$24 -> <Team> | AE42: - | AF42: =$P$25 -> <Team> | AY42: : | BD42: : | BG42: 0 | BH42: : | BI42: 0
B44: III. Ranglisten
I46: Gruppe 1 | AH46: Pkt. | AL46: Tore | AQ46: Diff. | AT46: FP. | BH46: team | BI46: sp. | BJ46: pkt. | BK46: tore | BM46: diff. | BN46: fp.
I47: 1 | K47: =BH47 -> <Team> | AH47: =BJ47 -> 0 | AL47: =BK47 -> 0 | AN47: : | AO47: =BL47 -> 0 | AQ47: =BM47 -> 0 | AT47: =BN47 -> 0 | BH47: =$P$16 -> <Team> | BI47: 3 | BJ47: =teamPoints($BH47,$O$31:$O$42,$AF$31:$AF$42,$BG$31:$BG$42,$BI$31:$BI$42) -> 0 | BK47: =teamGoalsPlus($BH47,$O$31:$O$42,$AF$31:$AF$42,$AW$31:$AW$42,$AZ$31:$AZ$42) -> 0 | BL47: =teamGoalsMinus($BH47,$O$31:$O$42,$AF$31:$AF$42,$AW$31:$AW$42,$AZ$31:$AZ$42) -> 0 | BM47: =BK47-BL47 -> 0 | BN47: =teamPoints($BH47,$O$31:$O$42,$AF$31:$AF$42,$BB$31:$BB$42,$BE$31:$BE$42) -> 0
I48: 2 | K48: =BH48 -> <Team> | AH48: =BJ48 -> 0 | AL48: =BK48 -> 0 | AN48: : | AO48: =BL48 -> 0 | AQ48: =BM48 -> 0 | AT48: =BN48 -> 0 | BH48: =$P$17 -> <Team> | BI48: 3 | BJ48: =teamPoints($BH48,$O$31:$O$42,$AF$31:$AF$42,$BG$31:$BG$42,$BI$31:$BI$42) -> 0 | BK48: =teamGoalsPlus($BH48,$O$31:$O$42,$AF$31:$AF$42,$AW$31:$AW$42,$AZ$31:$AZ$42) -> 0 | BL48: =teamGoalsMinus($BH48,$O$31:$O$42,$AF$31:$AF$42,$AW$31:$AW$42,$AZ$31:$AZ$42) -> 0 | BM48: =BK48-BL48 -> 0 | BN48: =teamPoints($BH48,$O$31:$O$42,$AF$31:$AF$42,$BB$31:$BB$42,$BE$31:$BE$42) -> 0
I49: 3 | K49: =BH49 -> <Team> | AH49: =BJ49 -> 0 | AL49: =BK49 -> 0 | AN49: : | AO49: =BL49 -> 0 | AQ49: =BM49 -> 0 | AT49: =BN49 -> 0 | BH49: =$P$18 -> <Team> | BI49: 3 | BJ49: =teamPoints($BH49,$O$31:$O$42,$AF$31:$AF$42,$BG$31:$BG$42,$BI$31:$BI$42) -> 0 | BK49: =teamGoalsPlus($BH49,$O$31:$O$42,$AF$31:$AF$42,$AW$31:$AW$42,$AZ$31:$AZ$42) -> 0 | BL49: =teamGoalsMinus($BH49,$O$31:$O$42,$AF$31:$AF$42,$AW$31:$AW$42,$AZ$31:$AZ$42) -> 0 | BM49: =BK49-BL49 -> 0 | BN49: =teamPoints($BH49,$O$31:$O$42,$AF$31:$AF$42,$BB$31:$BB$42,$BE$31:$BE$42) -> 0
I50: 4 | K50: =BH50 -> <Team> | AH50: =BJ50 -> 0 | AL50: =BK50 -> 0 | AN50: : | AO50: =BL50 -> 0 | AQ50: =BM50 -> 0 | AT50: =BN50 -> 0 | BH50: =$P$19 -> <Team> | BI50: 3 | BJ50: =teamPoints($BH50,$O$31:$O$42,$AF$31:$AF$42,$BG$31:$BG$42,$BI$31:$BI$42) -> 0 | BK50: =teamGoalsPlus($BH50,$O$31:$O$42,$AF$31:$AF$42,$AW$31:$AW$42,$AZ$31:$AZ$42) -> 0 | BL50: =teamGoalsMinus($BH50,$O$31:$O$42,$AF$31:$AF$42,$AW$31:$AW$42,$AZ$31:$AZ$42) -> 0 | BM50: =BK50-BL50 -> 0 | BN50: =teamPoints($BH50,$O$31:$O$42,$AF$31:$AF$42,$BB$31:$BB$42,$BE$31:$BE$42) -> 0
I52: Gruppe 2 | AH52: Pkt. | AL52: Tore | AQ52: Diff. | AT52: FP. | BH52: team | BI52: sp. | BJ52: pkt. | BK52: tore | BM52: diff. | BN52: fp.
I53: 1 | K53: =BH53 -> <Team> | AH53: =BJ53 -> 0 | AL53: =BK53 -> 0 | AN53: : | AO53: =BL53 -> 0 | AQ53: =BM53 -> 0 | AT53: =BN53 -> 0 | BH53: =$P$22 -> <Team> | BI53: 3 | BJ53: =teamPoints($BH53,$O$31:$O$42,$AF$31:$AF$42,$BG$31:$BG$42,$BI$31:$BI$42) -> 0 | BK53: =teamGoalsPlus($BH53,$O$31:$O$42,$AF$31:$AF$42,$AW$31:$AW$42,$AZ$31:$AZ$42) -> 0 | BL53: =teamGoalsMinus($BH53,$O$31:$O$42,$AF$31:$AF$42,$AW$31:$AW$42,$AZ$31:$AZ$42) -> 0 | BM53: =BK53-BL53 -> 0 | BN53: =teamPoints($BH53,$O$31:$O$42,$AF$31:$AF$42,$BB$31:$BB$42,$BE$31:$BE$42) -> 0
I54: 2 | K54: =BH54 -> <Team> | AH54: =BJ54 -> 0 | AL54: =BK54 -> 0 | AN54: : | AO54: =BL54 -> 0 | AQ54: =BM54 -> 0 | AT54: =BN54 -> 0 | BH54: =$P$23 -> <Team> | BI54: 3 | BJ54: =teamPoints($BH54,$O$31:$O$42,$AF$31:$AF$42,$BG$31:$BG$42,$BI$31:$BI$42) -> 0 | BK54: =teamGoalsPlus($BH54,$O$31:$O$42,$AF$31:$AF$42,$AW$31:$AW$42,$AZ$31:$AZ$42) -> 0 | BL54: =teamGoalsMinus($BH54,$O$31:$O$42,$AF$31:$AF$42,$AW$31:$AW$42,$AZ$31:$AZ$42) -> 0 | BM54: =BK54-BL54 -> 0 | BN54: =teamPoints($BH54,$O$31:$O$42,$AF$31:$AF$42,$BB$31:$BB$42,$BE$31:$BE$42) -> 0
I55: 3 | K55: =BH55 -> <Team> | AH55: =BJ55 -> 0 | AL55: =BK55 -> 0 | AN55: : | AO55: =BL55 -> 0 | AQ55: =BM55 -> 0 | AT55: =BN55 -> 0 | BH55: =$P$24 -> <Team> | BI55: 3 | BJ55: =teamPoints($BH55,$O$31:$O$42,$AF$31:$AF$42,$BG$31:$BG$42,$BI$31:$BI$42) -> 0 | BK55: =teamGoalsPlus($BH55,$O$31:$O$42,$AF$31:$AF$42,$AW$31:$AW$42,$AZ$31:$AZ$42) -> 0 | BL55: =teamGoalsMinus($BH55,$O$31:$O$42,$AF$31:$AF$42,$AW$31:$AW$42,$AZ$31:$AZ$42) -> 0 | BM55: =BK55-BL55 -> 0 | BN55: =teamPoints($BH55,$O$31:$O$42,$AF$31:$AF$42,$BB$31:$BB$42,$BE$31:$BE$42) -> 0
I56: 4 | K56: =BH56 -> <Team> | AH56: =BJ56 -> 0 | AL56: =BK56 -> 0 | AN56: : | AO56: =BL56 -> 0 | AQ56: =BM56 -> 0 | AT56: =BN56 -> 0 | BH56: =$P$25 -> <Team> | BI56: 3 | BJ56: =teamPoints($BH56,$O$31:$O$42,$AF$31:$AF$42,$BG$31:$BG$42,$BI$31:$BI$42) -> 0 | BK56: =teamGoalsPlus($BH56,$O$31:$O$42,$AF$31:$AF$42,$AW$31:$AW$42,$AZ$31:$AZ$42) -> 0 | BL56: =teamGoalsMinus($BH56,$O$31:$O$42,$AF$31:$AF$42,$AW$31:$AW$42,$AZ$31:$AZ$42) -> 0 | BM56: =BK56-BL56 -> 0 | BN56: =teamPoints($BH56,$O$31:$O$42,$AF$31:$AF$42,$BB$31:$BB$42,$BE$31:$BE$42) -> 0

Sheet Spielplan U15
BH1: $BH$83:$BN$86 | BI1: $BH$89:$BN$93 | BJ1: $BH$96:$BN$98 | BK1: $BH$101:$BN$106
A2: Strassenfussball Turnier
A3: StrassenSportBasel
F6: Kategorie: | M6: U15 | U6: am: | Y6: Datum
N8: Ort: | Q8: Ort
G10: Beginn: | H10: 12:15:00 | M10: Uhr | T10: Spielzeit: | U10: 1 | V10: 1x | W10: x | X10: 00:08:00 | AC10: min | AK10: Pause: | AL10: 00:03:00 | AQ10: min
B13: I. Teilnehmende Teams
L15: <Gruppe 1>
L16: 1 | P16: <Team>
L17: 2 | P17: <Team>
L18: 3 | P18: <Team>
L19: 4 | P19: <Team>
L21: <Gruppe 1>
L22: 5 | P22: <Team>
L23: 6 | P23: <Team>
L24: 7 | P24: <Team>
L25: 8 | P25: <Team>
L26: 9 | P26: <Team>
L28: <Gruppe 1>
L29: 10 | P29: <Team>
L30: 11 | P30: <Team>
L31: 12 | P31: <Team>
L33: <Gruppe 1>
L34: 13 | P34: <Team>
L35: 14 | P35: <Team>
L36: 15 | P36: <Team>
L37: 16 | P37: <Team>
L38: 17 | P38: <Team>
L39: 18 | P39: <Team>
B42: II. Spielplan
B44: Nr. | D44: Platz | J44: Beginn | O44: Spielpaarung | AW44: Ergebnis | BB44: Fairplay | BG44: Punkte
B45: 1 | D45: 1 | J45: =H10+0*(U10*X10+AL10) -> 12:15:00 | O45: =$P$16 -> <Team> | AE45: - | AF45: =$P$19 -> <Team> | AY45: : | BD45: : | BG45: =IF(ISBLANK(AW45),"0",IF(AW45>AZ45,3,IF(AW45=AZ45,1,0))) + BB45 -> 0 | BH45: : | BI45: =IF(ISBLANK(AZ45),"0",IF(AZ45>AW45,3,IF(AZ45=AW45,1,0))) + BE45 -> 0
B46: 2 | D46: 1 | J46: =H10+1*(U10*X10+AL10) -> 12:26:00 | O46: =$P$22 -> <Team> | AE46: - | AF46: =$P$23 -> <Team> | AY46: : | BD46: : | BG46: =IF(ISBLANK(AW46),"0",IF(AW46>AZ46,3,IF(AW46=AZ46,1,0))) + BB46 -> 0 | BH46: : | BI46: =IF(ISBLANK(AZ46),"0",IF(AZ46>AW46,3,IF(AZ46=AW46,1,0))) + BE46 -> 0
B47: 3 | D47: 1 | J47: =H10+2*(U10*X10+AL10) -> 12:37:00 | O47: =$P$29 -> <Team> | AE47: - | AF47: =$P$30 -> <Team> | AY47: : | BD47: : | BG47: =IF(ISBLANK(AW47),"0",IF(AW47>AZ47,3,IF(AW47=AZ47,1,0))) + BB47 -> 0 | BH47: : | BI47: =IF(ISBLANK(AZ47),"0",IF(AZ47>AW47,3,IF(AZ47=AW47,1,0))) + BE47 -> 0
B48: 4 | D48: 1 | J48: =H10+3*(U10*X10+AL10) -> 12:48:00 | O48: =$P$34 -> <Team> | AE48: - | AF48: =$P$39 -> <Team> | AY48: : | BD48: : | BG48: =IF(ISBLANK(AW48),"0",IF(AW48>AZ48,3,IF(AW48=AZ48,1,0))) + BB48 -> 0 | BH48: : | BI48: =IF(ISBLANK(AZ48),"0",IF(AZ48>AW48,3,IF(AZ48=AW48,1,0))) + BE48 -> 0
B49: 5 | D49: 1 | J49: =H10+4*(U10*X10+AL10) -> 12:59:00 | O49: =$P$17 -> <Team> | AE49: - | AF49: =$P$18 -> <Team> | AY49: : | BD49: : | BG49: =IF(ISBLANK(AW49),"0",IF(AW49>AZ49,3,IF(AW49=AZ49,1,0))) + BB49 -> 0 | BH49: : | BI49: =IF(ISBLANK(AZ49),"0",IF(AZ49>AW49,3,IF(AZ49=AW49,1,0))) + BE49 -> 0
B50: 6 | D50: 1 | J50: =H10+5*(U10*X10+AL10) -> 13:10:00 | O50: =$P$24 -> <Team> | AE50: - | AF50: =$P$25 -> <Team> | AY50: : | BD50: : | BG50: =IF(ISBLANK(AW50),"0",IF(AW50>AZ50,3,IF(AW50=AZ50,1,0))) + BB50 -> 0 | BH50: : | BI50: =IF(ISBLANK(AZ50),"0",IF(AZ50>AW50,3,IF(AZ50=AW50,1,0))) + BE50 -> 0
B51: 7 | D51: 1 | J51: =H10+6*(U10*X10+AL10) -> 13:21:00 | O51: =$P$29 -> <Team> | AE51: - | AF51: =$P$31 -> <Team> | AY51: : | BD51: : | BG51: =IF(ISBLANK(AW51),"0",IF(AW51>AZ51,3,IF(AW51=AZ51,1,0))) + BB51 -> 0 | BH51: : | BI51: =IF(ISBLANK(AZ51),"0",IF(AZ51>AW51,3,IF(AZ51=AW51,1,0))) + BE51 -> 0
B52: 8 | D52: 1 | J52: =H10+7*(U10*X10+AL10) -> 13:32:00 | O52: =$P$35 -> <Team> | AE52: - | AF52: =$P$38 -> <Team> | AY52: : | BD52: : | BG52: =IF(ISBLANK(AW52),"0",IF(AW52>AZ52,3,IF(AW52=AZ52,1,0))) + BB52 -> 0 | BH52: : | BI52: =IF(ISBLANK(AZ52),"0",IF(AZ52>AW52,3,IF(AZ52=AW52,1,0))) + BE52 -> 0
B53: 9 | D53: 1 | J53: =H10+8*(U10*X10+AL10) -> 13:43:00 | O53: =$P$16 -> <Team> | AE53: - | AF53: =$P$18 -> <Team> | AY53: : | BD53: : | BG53: =IF(ISBLANK(AW53),"0",IF(AW53>AZ53,3,IF(AW53=AZ53,1,0))) + BB53 -> 0 | BH53: : | BI53: =IF(ISBLANK(AZ53),"0",IF(AZ53>AW53,3,IF(AZ53=AW53,1,0))) + BE53 -> 0
B54: 10 | D54: 1 | J54: =H10+9*(U10*X10+AL10) -> 13:54:00 | O54: =$P$22 -> <Team> | AE54: - | AF54: =$P$26 -> <Team> | AY54: : | BD54: : | BG54: =IF(ISBLANK(AW54),"0",IF(AW54>AZ54,3,IF(AW54=AZ54,1,0))) + BB54 -> 0 | BH54: : | BI54: =IF(ISBLANK(AZ54),"0",IF(AZ54>AW54,3,IF(AZ54=AW54,1,0))) + BE54 -> 0
B55: 11 | D55: 1 | J55: =H10+10*(U10*X10+AL10) -> 14:05:00 | O55: =$P$30 -> <Team> | AE55: - | AF55: =$P$31 -> <Team> | AY55: : | BD55: : | BG55: =IF(ISBLANK(AW55),"0",IF(AW55>AZ55,3,IF(AW55=AZ55,1,0))) + BB55 -> 0 | BH55: : | BI55: =IF(ISBLANK(AZ55),"0",IF(AZ55>AW55,3,IF(AZ55=AW55,1,0))) + BE55 -> 0
B56: 12 | D56: 1 | J56: =H10+11*(U10*X10+AL10) -> 14:16:00 | O56: =$P$36 -> <Team> | AE56: - | AF56: =$P$37 -> <Team> | AY56: : | BD56: : | BG56: =IF(ISBLANK(AW56),"0",IF(AW56>AZ56,3,IF(AW56=AZ56,1,0))) + BB56 -> 0 | BH56: : | BI56: =IF(ISBLANK(AZ56),"0",IF(AZ56>AW56,3,IF(AZ56=AW56,1,0))) + BE56 -> 0
B57: 13 | D57: 1 | J57: =H10+12*(U10*X10+AL10) -> 14:27:00 | O57: =$P$19 -> <Team> | AE57: - | AF57: =$P$17 -> <Team> | AY57: : | BD57: : | BG57: =IF(ISBLANK(AW57),"0",IF(AW57>AZ57,3,IF(AW57=AZ57,1,0))) + BB57 -> 0 | BH57: : | BI57: =IF(ISBLANK(AZ57),"0",IF(AZ57>AW57,3,IF(AZ57=AW57,1,0))) + BE57 -> 0
B58: 14 | D58: 1 | J58: =H10+13*(U10*X10+AL10) -> 14:38:00 | O58: =$P$23 -> <Team> | AE58: - | AF58: =$P$24 -> <Team> | AY58: : | BD58: : | BG58: =IF(ISBLANK(AW58),"0",IF(AW58>AZ58,3,IF(AW58=AZ58,1,0))) + BB58 -> 0 | BH58: : | BI58: =IF(ISBLANK(AZ58),"0",IF(AZ58>AW58,3,IF(AZ58=AW58,1,0))) + BE58 -> 0
B59: 15 | D59: 1 | J59: =H10+14*(U10*X10+AL10) -> 14:49:00 | O59: =$P$34 -> <Team> | AE59: - | AF59: =$P$38 -> <Team> | AY59: : | BD59: : | BG59: =IF(ISBLANK(AW59),"0",IF(AW59>AZ59,3,IF(AW59=AZ59,1,0))) + BB59 -> 0 | BH59: : | BI59: =IF(ISBLANK(AZ59),"0",IF(AZ59>AW59,3,IF(AZ59=AW59,1,0))) + BE59 -> 0
B60: 16 | D60: 1 | J60: =H10+15*(U10*X10+AL10) -> 15:00:00 | O60: =$P$16 -> <Team> | AE60: - | AF60: =$P$17 -> <Team> | AY60: : | BD60: : | BG60: =IF(ISBLANK(AW60),"0",IF(AW60>AZ60,3,IF(AW60=AZ60,1,0))) + BB60 -> 0 | BH60: : | BI60: =IF(ISBLANK(AZ60),"0",IF(AZ60>AW60,3,IF(AZ60=AW60,1,0))) + BE60 -> 0
B61: 17 | D61: 1 | J61: =H10+16*(U10*X10+AL10) -> 15:11:00 | O61: =$P$25 -> <Team> | AE61: - | AF61: =$P$26 -> <Team> | AY61: : | BD61: : | BG61: =IF(ISBLANK(AW61),"0",IF(AW61>AZ61,3,IF(AW61=AZ61,1,0))) + BB61 -> 0 | BH61: : | BI61: =IF(ISBLANK(AZ61),"0",IF(AZ61>AW61,3,IF(AZ61=AW61,1,0))) + BE61 -> 0
B62: 18 | D62: 1 | J62: =H10+17*(U10*X10+AL10) -> 15:22:00 | O62: =$P$39 -> <Team> | AE62: - | AF62: =$P$37 -> <Team> | AY62: : | BD62: : | BG62: =IF(ISBLANK(AW62),"0",IF(AW62>AZ62,3,IF(AW62=AZ62,1,0))) + BB62 -> 0 | BH62: : | BI62: =IF(ISBLANK(AZ62),"0",IF(AZ62>AW62,3,IF(AZ62=AW62,1,0))) + BE62 -> 0
B63: 19 | D63: 1 | J63: =H10+18*(U10*X10+AL10) -> 15:33:00 | O63: =$P$18 -> <Team> | AE63: - | AF63: =$P$19 -> <Team> | AY63: : | BD63: : | BG63: =IF(ISBLANK(AW63),"0",IF(AW63>AZ63,3,IF(AW63=AZ63,1,0))) + BB63 -> 0 | BH63: : | BI63: =IF(ISBLANK(AZ63),"0",IF(AZ63>AW63,3,IF(AZ63=AW63,1,0))) + BE63 -> 0
B64: 20 | D64: 1 | J64: =H10+19*(U10*X10+AL10) -> 15:44:00 | O64: =$P$22 -> <Team> | AE64: - | AF64: =$P$24 -> <Team> | AY64: : | BD64: : | BG64: =IF(ISBLANK(AW64),"0",IF(AW64>AZ64,3,IF(AW64=AZ64,1,0))) + BB64 -> 0 | BH64: : | BI64: =IF(ISBLANK(AZ64),"0",IF(AZ64>AW64,3,IF(AZ64=AW64,1,0))) + BE64 -> 0
B65: 21 | D65: 1 | J65: =H10+20*(U10*X10+AL10) -> 15:55:00 | O65: =$P$35 -> <Team> | AE65: - | AF65: =$P$36 -> <Team> | AY65: : | BD65: : | BG65: =IF(ISBLANK(AW65),"0",IF(AW65>AZ65,3,IF(AW65=AZ65,1,0))) + BB65 -> 0 | BH65: : | BI65: =IF(ISBLANK(AZ65),"0",IF(AZ65>AW65,3,IF(AZ65=AW65,1,0))) + BE65 -> 0
B66: 22 | D66: 1 | J66: =H10+21*(U10*X10+AL10) -> 16:06:00 | O66: =$P$23 -> <Team> | AE66: - | AF66: =$P$25 -> <Team> | AY66: : | BD66: : | BG66: =IF(ISBLANK(AW66),"0",IF(AW66>AZ66,3,IF(AW66=AZ66,1,0))) + BB66 -> 0 | BH66: : | BI66: =IF(ISBLANK(AZ66),"0",IF(AZ66>AW66,3,IF(AZ66=AW66,1,0))) + BE66 -> 0
B67: 23 | D67: 1 | J67: =H10+22*(U10*X10+AL10) -> 16:17:00 | O67: =$P$34 -> <Team> | AE67: - | AF67: =$P$37 -> <Team> | AY67: : | BD67: : | BG67: =IF(ISBLANK(AW67),"0",IF(AW67>AZ67,3,IF(AW67=AZ67,1,0))) + BB67 -> 0 | BH67: : | BI67: =IF(ISBLANK(AZ67),"0",IF(AZ67>AW67,3,IF(AZ67=AW67,1,0))) + BE67 -> 0
B68: 24 | D68: 1 | J68: =H10+23*(U10*X10+AL10) -> 16:28:00 | O68: =$P$24 -> <Team> | AE68: - | AF68: =$P$26 -> <Team> | AY68: : | BD68: : | BG68: =IF(ISBLANK(AW68),"0",IF(AW68>AZ68,3,IF(AW68=AZ68,1,0))) + BB68 -> 0 | BH68: : | BI68: =IF(ISBLANK(AZ68),"0",IF(AZ68>AW68,3,IF(AZ68=AW68,1,0))) + BE68 -> 0
B69: 25 | D69: 1 | J69: =H10+24*(U10*X10+AL10) -> 16:39:00 | O69: =$P$38 -> <Team> | AE69: - | AF69: =$P$36 -> <Team> | AY69: : | BD69: : | BG69: =IF(ISBLANK(AW69),"0",IF(AW69>AZ69,3,IF(AW69=AZ69,1,0))) + BB69 -> 0 | BH69: : | BI69: =IF(ISBLANK(AZ69),"0",IF(AZ69>AW69,3,IF(AZ69=AW69,1,0))) + BE69 -> 0
B70: 26 | D70: 1 | J70: =H10+25*(U10*X10+AL10) -> 16:50:00 | O70: =$P$22 -> <Team> | AE70: - | AF70: =$P$25 -> <Team> | AY70: : | BD70: : | BG70: =IF(ISBLANK(AW70),"0",IF(AW70>AZ70,3,IF(AW70=AZ70,1,0))) + BB70 -> 0 | BH70: : | BI70: =IF(ISBLANK(AZ70),"0",IF(AZ70>AW70,3,IF(AZ70=AW70,1,0))) + BE70 -> 0
B71: 27 | D71: 1 | J71: =H10+26*(U10*X10+AL10) -> 17:01:00 | O71: =$P$39 -> <Team> | AE71: - | AF71: =$P$35 -> <Team> | AY71: : | BD71: : | BG71: =IF(ISBLANK(AW71),"0",IF(AW71>AZ71,3,IF(AW71=AZ71,1,0))) + BB71 -> 0 | BH71: : | BI71: =IF(ISBLANK(AZ71),"0",IF(AZ71>AW71,3,IF(AZ71=AW71,1,0))) + BE71 -> 0
B72: 28 | D72: 1 | J72: =H10+27*(U10*X10+AL10) -> 17:12:00 | O72: =$P$23 -> <Team> | AE72: - | AF72: =$P$26 -> <Team> | AY72: : | BD72: : | BG72: =IF(ISBLANK(AW72),"0",IF(AW72>AZ72,3,IF(AW72=AZ72,1,0))) + BB72 -> 0 | BH72: : | BI72: =IF(ISBLANK(AZ72),"0",IF(AZ72>AW72,3,IF(AZ72=AW72,1,0))) + BE72 -> 0
B73: 29 | D73: 1 | J73: =H10+28*(U10*X10+AL10) -> 17:23:00 | O73: =$P$34 -> <Team> | AE73: - | AF73: =$P$36 -> <Team> | AY73: : | BD73: : | BG73: =IF(ISBLANK(AW73),"0",IF(AW73>AZ73,3,IF(AW73=AZ73,1,0))) + BB73 -> 0 | BH73: : | BI73: =IF(ISBLANK(AZ73),"0",IF(AZ73>AW73,3,IF(AZ73=AW73,1,0))) + BE73 -> 0
B74: 30 | D74: 1 | J74: =H10+29*(U10*X10+AL10) -> 17:34:00 | O74: =$P$37 -> <Team> | AE74: - | AF74: =$P$35 -> <Team> | AY74: : | BD74: : | BG74: =IF(ISBLANK(AW74),"0",IF(AW74>AZ74,3,IF(AW74=AZ74,1,0))) + BB74 -> 0 | BH74: : | BI74: =IF(ISBLANK(AZ74),"0",IF(AZ74>AW74,3,IF(AZ74=AW74,1,0))) + BE74 -> 0
B75: 31 | D75: 1 | J75: =H10+30*(U10*X10+AL10) -> 17:45:00 | O75: =$P$38 -> <Team> | AE75: - | AF75: =$P$39 -> <Team> | AY75: : | BD75: : | BG75: =IF(ISBLANK(AW75),"0",IF(AW75>AZ75,3,IF(AW75=AZ75,1,0))) + BB75 -> 0 | BH75: : | BI75: =IF(ISBLANK(AZ75),"0",IF(AZ75>AW75,3,IF(AZ75=AW75,1,0))) + BE75 -> 0
B76: 32 | D76: 1 | J76: =H10+31*(U10*X10+AL10) -> 17:56:00 | O76: =$P$34 -> <Team> | AE76: - | AF76: =$P$35 -> <Team> | AY76: : | BD76: : | BG76: =IF(ISBLANK(AW76),"0",IF(AW76>AZ76,3,IF(AW76=AZ76,1,0))) + BB76 -> 0 | BH76: : | BI76: =IF(ISBLANK(AZ76),"0",IF(AZ76>AW76,3,IF(AZ76=AW76,1,0))) + BE76 -> 0
B77: 33 | D77: 1 | J77: =H10+32*(U10*X10+AL10) -> 18:07:00 | O77: =$P$36 -> <Team> | AE77: - | AF77: =$P$39 -> <Team> | AY77: : | BD77: : | BG77: =IF(ISBLANK(AW77),"0",IF(AW77>AZ77,3,IF(AW77=AZ77,1,0))) + BB77 -> 0 | BH77: : | BI77: =IF(ISBLANK(AZ77),"0",IF(AZ77>AW77,3,IF(AZ77=AW77,1,0))) + BE77 -> 0
B78: 34 | D78: 1 | J78: =H10+33*(U10*X10+AL10) -> 18:18:00 | O78: =$P$37 -> <Team> | AE78: - | AF78: =$P$38 -> <Team> | AY78: : | BD78: : | BG78: =IF(ISBLANK(AW78),"0",IF(AW78>AZ78,3,IF(AW78=AZ78,1,0))) + BB78 -> 0 | BH78: : | BI78: =IF(ISBLANK(AZ78),"0",IF(AZ78>AW78,3,IF(AZ78=AW78,1,0))) + BE78 -> 0
B80: III. Ranglisten
I82: Gruppe 1 | AH82: Pkt. | AL82: Tore | AQ82: Diff. | AT82: FP. | BH82: team | BI82: sp. | BJ82: pkt. | BK82: tore | BM82: diff. | BN82: fp.
I83: 1 | K83: =BH83 -> <Team> | AH83: =BJ83 -> 0 | AL83: =BK83 -> 0 | AN83: : | AO83: =BL83 -> 0 | AQ83: =BM83 -> 0 | AT83: =BN83 -> 0 | BH83: =$P$16 -> <Team> | BI83: 3 | BJ83: =teamPoints($BH83,$O$45:$O$78,$AF$45:$AF$78,$BG$45:$BG$78,$BI$45:$BI$78) -> 0 | BK83: =teamGoalsPlus($BH83,$O$45:$O$78,$AF$45:$AF$78,$AW$45:$AW$78,$AZ$45:$AZ$78) -> 0 | BL83: =teamGoalsMinus($BH83,$O$45:$O$78,$AF$45:$AF$78,$AW$45:$AW$78,$AZ$45:$AZ$78) -> 0 | BM83: =BK83-BL83 -> 0 | BN83: =teamPoints($BH83,$O$45:$O$78,$AF$45:$AF$78,$BB$45:$BB$78,$BE$45:$BE$78) -> 0
I84: 2 | K84: =BH84 -> <Team> | AH84: =BJ84 -> 0 | AL84: =BK84 -> 0 | AN84: : | AO84: =BL84 -> 0 | AQ84: =BM84 -> 0 | AT84: =BN84 -> 0 | BH84: =$P$17 -> <Team> | BI84: 3 | BJ84: =teamPoints($BH84,$O$45:$O$78,$AF$45:$AF$78,$BG$45:$BG$78,$BI$45:$BI$78) -> 0 | BK84: =teamGoalsPlus($BH84,$O$45:$O$78,$AF$45:$AF$78,$AW$45:$AW$78,$AZ$45:$AZ$78) -> 0 | BL84: =teamGoalsMinus($BH84,$O$45:$O$78,$AF$45:$AF$78,$AW$45:$AW$78,$AZ$45:$AZ$78) -> 0 | BM84: =BK84-BL84 -> 0 | BN84: =teamPoints($BH84,$O$45:$O$78,$AF$45:$AF$78,$BB$45:$BB$78,$BE$45:$BE$78) -> 0
I85: 3 | K85: =BH85 -> <Team> | AH85: =BJ85 -> 0 | AL85: =BK85 -> 0 | AN85: : | AO85: =BL85 -> 0 | AQ85: =BM85 -> 0 | AT85: =BN85 -> 0 | BH85: =$P$18 -> <Team> | BI85: 3 | BJ85: =teamPoints($BH85,$O$45:$O$78,$AF$45:$AF$78,$BG$45:$BG$78,$BI$45:$BI$78) -> 0 | BK85: =teamGoalsPlus($BH85,$O$45:$O$78,$AF$45:$AF$78,$AW$45:$AW$78,$AZ$45:$AZ$78) -> 0 | BL85: =teamGoalsMinus($BH85,$O$45:$O$78,$AF$45:$AF$78,$AW$45:$AW$78,$AZ$45:$AZ$78) -> 0 | BM85: =BK85-BL85 -> 0 | BN85: =teamPoints($BH85,$O$45:$O$78,$AF$45:$AF$78,$BB$45:$BB$78,$BE$45:$BE$78) -> 0
I86: 4 | K86: =BH86 -> <Team> | AH86: =BJ86 -> 0 | AL86: =BK86 -> 0 | AN86: : | AO86: =BL86 -> 0 | AQ86: =BM86 -> 0 | AT86: =BN86 -> 0 | BH86: =$P$19 -> <Team> | BI86: 3 | BJ86: =teamPoints($BH86,$O$45:$O$78,$AF$45:$AF$78,$BG$45:$BG$78,$BI$45:$BI$78) -> 0 | BK86: =teamGoalsPlus($BH86,$O$45:$O$78,$AF$45:$AF$78,$AW$45:$AW$78,$AZ$45:$AZ$78) -> 0 | BL86: =teamGoalsMinus($BH86,$O$45:$O$78,$AF$45:$AF$78,$AW$45:$AW$78,$AZ$45:$AZ$78) -> 0 | BM86: =BK86-BL86 -> 0 | BN86: =teamPoints($BH86,$O$45:$O$78,$AF$45:$AF$78,$BB$45:$BB$78,$BE$45:$BE$78) -> 0
I88: Gruppe 2 | AH88: Pkt. | AL88: Tore | AQ88: Diff. | AT88: FP. | BH88: team | BI88: sp. | BJ88: pkt. | BK88: tore | BM88: diff. | BN88: fp.
I89: 1 | K89: =BH89 -> <Team> | AH89: =BJ89 -> 0 | AL89: =BK89 -> 0 | AN89: : | AO89: =BL89 -> 0 | AQ89: =BM89 -> 0 | AT89: =BN89 -> 0 | BH89: =$P$22 -> <Team> | BI89: 4 | BJ89: =teamPoints($BH89,$O$45:$O$78,$AF$45:$AF$78,$BG$45:$BG$78,$BI$45:$BI$78) -> 0 | BK89: =teamGoalsPlus($BH89,$O$45:$O$78,$AF$45:$AF$78,$AW$45:$AW$78,$AZ$45:$AZ$78) -> 0 | BL89: =teamGoalsMinus($BH89,$O$45:$O$78,$AF$45:$AF$78,$AW$45:$AW$78,$AZ$45:$AZ$78) -> 0 | BM89: =BK89-BL89 -> 0 | BN89: =teamPoints($BH89,$O$45:$O$78,$AF$45:$AF$78,$BB$45:$BB$78,$BE$45:$BE$78) -> 0
I90: 2 | K90: =BH90 -> <Team> | AH90: =BJ90 -> 0 | AL90: =BK90 -> 0 | AN90: : | AO90: =BL90 -> 0 | AQ90: =BM90 -> 0 | AT90: =BN90 -> 0 | BH90: =$P$23 -> <Team> | BI90: 4 | BJ90: =teamPoints($BH90,$O$45:$O$78,$AF$45:$AF$78,$BG$45:$BG$78,$BI$45:$BI$78) -> 0 | BK90: =teamGoalsPlus($BH90,$O$45:$O$78,$AF$45:$AF$78,$AW$45:$AW$78,$AZ$45:$AZ$78) -> 0 | BL90: =teamGoalsMinus($BH90,$O$45:$O$78,$AF$45:$AF$78,$AW$45:$AW$78,$AZ$45:$AZ$78) -> 0 | BM90: =BK90-BL90 -> 0 | BN90: =teamPoints($BH90,$O$45:$O$78,$AF$45:$AF$78,$BB$45:$BB$78,$BE$45:$BE$78) -> 0
I91: 3 | K91: =BH91 -> <Team> | AH91: =BJ91 -> 0 | AL91: =BK91 -> 0 | AN91: : | AO91: =BL91 -> 0 | AQ91: =BM91 -> 0 | AT91: =BN91 -> 0 | BH91: =$P$24 -> <Team> | BI91: 4 | BJ91: =teamPoints($BH91,$O$45:$O$78,$AF$45:$AF$78,$BG$45:$BG$78,$BI$45:$BI$78) -> 0 | BK91: =teamGoalsPlus($BH91,$O$45:$O$78,$AF$45:$AF$78,$AW$45:$AW$78,$AZ$45:$AZ$78) -> 0 | BL91: =teamGoalsMinus($BH91,$O$45:$O$78,$AF$45:$AF$78,$AW$45:$AW$78,$AZ$45:$AZ$78) -> 0 | BM91: =BK91-BL91 -> 0 | BN91: =teamPoints($BH91,$O$45:$O$78,$AF$45:$AF$78,$BB$45:$BB$78,$BE$45:$BE$78) -> 0
I92: 4 | K92: =BH92 -> <Team> | AH92: =BJ92 -> 0 | AL92: =BK92 -> 0 | AN92: : | AO92: =BL92 -> 0 | AQ92: =BM92 -> 0 | AT92: =BN92 -> 0 | BH92: =$P$25 -> <Team> | BI92: 4 | BJ92: =teamPoints($BH92,$O$45:$O$78,$AF$45:$AF$78,$BG$45:$BG$78,$BI$45:$BI$78) -> 0 | BK92: =teamGoalsPlus($BH92,$O$45:$O$78,$AF$45:$AF$78,$AW$45:$AW$78,$AZ$45:$AZ$78) -> 0 | BL92: =teamGoalsMinus($BH92,$O$45:$O$78,$AF$45:$AF$78,$AW$45:$AW$78,$AZ$45:$AZ$78) -> 0 | BM92: =BK92-BL92 -> 0 | BN92: =teamPoints($BH92,$O$45:$O$78,$AF$45:$AF$78,$BB$45:$BB$78,$BE$45:$BE$78) -> 0
I93: 5 | K93: =BH93 -> <Team> | AH93: =BJ93 -> 0 | AL93: =BK93 -> 0 | AN93: : | AO93: =BL93 -> 0 | AQ93: =BM93 -> 0 | AT93: =BN93 -> 0 | BH93: =$P$26 -> <Team> | BI93: 4 | BJ93: =teamPoints($BH93,$O$45:$O$78,$AF$45:$AF$78,$BG$45:$BG$78,$BI$45:$BI$78) -> 0 | BK93: =teamGoalsPlus($BH93,$O$45:$O$78,$AF$45:$AF$78,$AW$45:$AW$78,$AZ$45:$AZ$78) -> 0 | BL93: =teamGoalsMinus($BH93,$O$45:$O$78,$AF$45:$AF$78,$AW$45:$AW$78,$AZ$45:$AZ$78) -> 0 | BM93: =BK93-BL93 -> 0 | BN93: =teamPoints($BH93,$O$45:$O$78,$AF$45:$AF$78,$BB$45:$BB$78,$BE$45:$BE$78) -> 0
I95: Gruppe 3 | AH95: Pkt. | AL95: Tore | AQ95: Diff. | AT95: FP. | BH95: team | BI95: sp. | BJ95: pkt. | BK95: tore | BM95: diff. | BN95: fp.
I96: 1 | K96: =BH96 -> <Team> | AH96: =BJ96 -> 0 | AL96: =BK96 -> 0 | AN96: : | AO96: =BL96 -> 0 | AQ96: =BM96 -> 0 | AT96: =BN96 -> 0 | BH96: =$P$29 -> <Team> | BI96: 2 | BJ96: =teamPoints($BH96,$O$45:$O$78,$AF$45:$AF$78,$BG$45:$BG$78,$BI$45:$BI$78) -> 0 | BK96: =teamGoalsPlus($BH96,$O$45:$O$78,$AF$45:$AF$78,$AW$45:$AW$78,$AZ$45:$AZ$78) -> 0 | BL96: =teamGoalsMinus($BH96,$O$45:$O$78,$AF$45:$AF$78,$AW$45:$AW$78,$AZ$45:$AZ$78) -> 0 | BM96: =BK96-BL96 -> 0 | BN96: =teamPoints($BH96,$O$45:$O$78,$AF$45:$AF$78,$BB$45:$BB$78,$BE$45:$BE$78) -> 0
I97: 2 | K97: =BH97 -> <Team> | AH97: =BJ97 -> 0 | AL97: =BK97 -> 0 | AN97: : | AO97: =BL97 -> 0 | AQ97: =BM97 -> 0 | AT97: =BN97 -> 0 | BH97: =$P$30 -> <Team> | BI97: 2 | BJ97: =teamPoints($BH97,$O$45:$O$78,$AF$45:$AF$78,$BG$45:$BG$78,$BI$45:$BI$78) -> 0 | BK97: =teamGoalsPlus($BH97,$O$45:$O$78,$AF$45:$AF$78,$AW$45:$AW$78,$AZ$45:$AZ$78) -> 0 | BL97: =teamGoalsMinus($BH97,$O$45:$O$78,$AF$45:$AF$78,$AW$45:$AW$78,$AZ$45:$AZ$78) -> 0 | BM97: =BK97-BL97 -> 0 | BN97: =teamPoints($BH97,$O$45:$O$78,$AF$45:$AF$78,$BB$45:$BB$78,$BE$45:$BE$78) -> 0
I98: 3 | K98: =BH98 -> <Team> | AH98: =BJ98 -> 0 | AL98: =BK98 -> 0 | AN98: : | AO98: =BL98 -> 0 | AQ98: =BM98 -> 0 | AT98: =BN98 -> 0 | BH98: =$P$31 -> <Team> | BI98: 2 | BJ98: =teamPoints($BH98,$O$45:$O$78,$AF$45:$AF$78,$BG$45:$BG$78,$BI$45:$BI$78) -> 0 | BK98: =teamGoalsPlus($BH98,$O$45:$O$78,$AF$45:$AF$78,$AW$45:$AW$78,$AZ$45:$AZ$78) -> 0 | BL98: =teamGoalsMinus($BH98,$O$45:$O$78,$AF$45:$AF$78,$AW$45:$AW$78,$AZ$45:$AZ$78) -> 0 | BM98: =BK98-BL98 -> 0 | BN98: =teamPoints($BH98,$O$45:$O$78,$AF$45:$AF$78,$BB$45:$BB$78,$BE$45:$BE$78) -> 0
I100: Gruppe 4 | AH100: Pkt. | AL100: Tore | AQ100: Diff. | AT100: FP. | BH100: team | BI100: sp. | BJ100: pkt. | BK100: tore | BM100: diff. | BN100: fp.
I101: 1 | K101: =BH101 -> <Team> | AH101: =BJ101 -> 0 | AL101: =BK101 -> 0 | AN101: : | AO101: =BL101 -> 0 | AQ101: =BM101 -> 0 | AT101: =BN101 -> 0 | BH101: =$P$34 -> <Team> | BI101: 5 | BJ101: =teamPoints($BH101,$O$45:$O$78,$AF$45:$AF$78,$BG$45:$BG$78,$BI$45:$BI$78) -> 0 | BK101: =teamGoalsPlus($BH101,$O$45:$O$78,$AF$45:$AF$78,$AW$45:$AW$78,$AZ$45:$AZ$78) -> 0 | BL101: =teamGoalsMinus($BH101,$O$45:$O$78,$AF$45:$AF$78,$AW$45:$AW$78,$AZ$45:$AZ$78) -> 0 | BM101: =BK101-BL101 -> 0 | BN101: =teamPoints($BH101,$O$45:$O$78,$AF$45:$AF$78,$BB$45:$BB$78,$BE$45:$BE$78) -> 0
I102: 2 | K102: =BH102 -> <Team> | AH102: =BJ102 -> 0 | AL102: =BK102 -> 0 | AN102: : | AO102: =BL102 -> 0 | AQ102: =BM102 -> 0 | AT102: =BN102 -> 0 | BH102: =$P$35 -> <Team> | BI102: 5 | BJ102: =teamPoints($BH102,$O$45:$O$78,$AF$45:$AF$78,$BG$45:$BG$78,$BI$45:$BI$78) -> 0 | BK102: =teamGoalsPlus($BH102,$O$45:$O$78,$AF$45:$AF$78,$AW$45:$AW$78,$AZ$45:$AZ$78) -> 0 | BL102: =teamGoalsMinus($BH102,$O$45:$O$78,$AF$45:$AF$78,$AW$45:$AW$78,$AZ$45:$AZ$78) -> 0 | BM102: =BK102-BL102 -> 0 | BN102: =teamPoints($BH102,$O$45:$O$78,$AF$45:$AF$78,$BB$45:$BB$78,$BE$45:$BE$78) -> 0
I103: 3 | K103: =BH103 -> <Team> | AH103: =BJ103 -> 0 | AL103: =BK103 -> 0 | AN103: : | AO103: =BL103 -> 0 | AQ103: =BM103 -> 0 | AT103: =BN103 -> 0 | BH103: =$P$36 -> <Team> | BI103: 5 | BJ103: =teamPoints($BH103,$O$45:$O$78,$AF$45:$AF$78,$BG$45:$BG$78,$BI$45:$BI$78) -> 0 | BK103: =teamGoalsPlus($BH103,$O$45:$O$78,$AF$45:$AF$78,$AW$45:$AW$78,$AZ$45:$AZ$78) -> 0 | BL103: =teamGoalsMinus($BH103,$O$45:$O$78,$AF$45:$AF$78,$AW$45:$AW$78,$AZ$45:$AZ$78) -> 0 | BM103: =BK103-BL103 -> 0 | BN103: =teamPoints($BH103,$O$45:$O$78,$AF$45:$AF$78,$BB$45:$BB$78,$BE$45:$BE$78) -> 0
I104: 4 | K104: =BH104 -> <Team> | AH104: =BJ104 -> 0 | AL104: =BK104 -> 0 | AN104: : | AO104: =BL104 -> 0 | AQ104: =BM104 -> 0 | AT104: =BN104 -> 0 | BH104: =$P$37 -> <Team> | BI104: 5 | BJ104: =teamPoints($BH104,$O$45:$O$78,$AF$45:$AF$78,$BG$45:$BG$78,$BI$45:$BI$78) -> 0 | BK104: =teamGoalsPlus($BH104,$O$45:$O$78,$AF$45:$AF$78,$AW$45:$AW$78,$AZ$45:$AZ$78) -> 0 | BL104: =teamGoalsMinus($BH104,$O$45:$O$78,$AF$45:$AF$78,$AW$45:$AW$78,$AZ$45:$AZ$78) -> 0 | BM104: =BK104-BL104 -> 0 | BN104: =teamPoints($BH104,$O$45:$O$78,$AF$45:$AF$78,$BB$45:$BB$78,$BE$45:$BE$78) -> 0
I105: 5 | K105: =BH105 -> <Team> | AH105: =BJ105 -> 0 | AL105: =BK105 -> 0 | AN105: : | AO105: =BL105 -> 0 | AQ105: =BM105 -> 0 | AT105: =BN105 -> 0 | BH105: =$P$38 -> <Team> | BI105: 5 | BJ105: =teamPoints($BH105,$O$45:$O$78,$AF$45:$AF$78,$BG$45:$BG$78,$BI$45:$BI$78) -> 0 | BK105: =teamGoalsPlus($BH105,$O$45:$O$78,$AF$45:$AF$78,$AW$45:$AW$78,$AZ$45:$AZ$78) -> 0 | BL105: =teamGoalsMinus($BH105,$O$45:$O$78,$AF$45:$AF$78,$AW$45:$AW$78,$AZ$45:$AZ$78) -> 0 | BM105: =BK105-BL105 -> 0 | BN105: =teamPoints($BH105,$O$45:$O$78,$AF$45:$AF$78,$BB$45:$BB$78,$BE$45:$BE$78) -> 0
I106: 6 | K106: =BH106 -> <Team> | AH106: =BJ106 -> 0 | AL106: =BK106 -> 0 | AN106: : | AO106: =BL106 -> 0 | AQ106: =BM106 -> 0 | AT106: =BN106 -> 0 | BH106: =$P$39 -> <Team> | BI106: 5 | BJ106: =teamPoints($BH106,$O$45:$O$78,$AF$45:$AF$78,$BG$45:$BG$78,$BI$45:$BI$78) -> 0 | BK106: =teamGoalsPlus($BH106,$O$45:$O$78,$AF$45:$AF$78,$AW$45:$AW$78,$AZ$45:$AZ$78) -> 0 | BL106: =teamGoalsMinus($BH106,$O$45:$O$78,$AF$45:$AF$78,$AW$45:$AW$78,$AZ$45:$AZ$78) -> 0 | BM106: =BK106-BL106 -> 0 | BN106: =teamPoints($BH106,$O$45:$O$78,$AF$45:$AF$78,$BB$45:$BB$78,$BE$45:$BE$78) -> 0

Sheet Vorlage (hidden)
A2: Strassenfussball Turnier
A3: StrassenSportBasel
F6: Kategorie: | M6: Kategorie | U6: am: | Y6: Datum
N8: Ort: | Q8: Ort
G10: Beginn: | H10: 12:15:00 | M10: Uhr | T10: Spielzeit: | U10: 1 | V10: 1x | W10: x | X10: 00:08:00 | AC10: min | AK10: Pause: | AL10: 00:03:00 | AQ10: min
B13: I. Teilnehmende Teams
L15: <Gruppe 1>
L16: 1 | P16: <Team>
B18: II. Spielplan
B20: Nr. | D20: Platz | J20: Beginn | O20: Spielpaarung | AW20: Ergebnis | BB20: Fairplay | BG20: Punkte
B21: <1> | D21: 1 | J21: <Zeit> | O21: <TeamA> | AE21: - | AF21: <TeamB> | AY21: : | BD21: : | BG21: =IF(ISBLANK(AW21),"0",IF(AW21>AZ21,3,IF(AW21=AZ21,1,0))) + BB21 -> 0 | BH21: : | BI21: =IF(ISBLANK(AZ21),"0",IF(AZ21>AW21,3,IF(AZ21=AW21,1,0))) + BE21 -> 0
B23: III. Ranglisten
I25: <Gruppe1> | AH25: Pkt. | AL25: Tore | AQ25: Diff. | AT25: FP. | BH25: team | BI25: sp. | BJ25: pkt. | BK25: tore | BM25: diff. | BN25: fp.
K26: =BH26 -> 0 | AH26: =BJ26 -> 0 | AL26: =BK26 -> 0 | AN26: : | AO26: =BL26 -> 0 | AQ26: =BM26 -> 0 | AT26: =BN26 -> 0 | BM26: =BK26-BL26 -> 0

Sheet Ursprungsversion (hidden)
A2: Fairplay
A4: Fussballturnier für - 5 - Teams
L6: Am | M6: Wochentag | U6: , den | Y6: Datum
B8: im Stadion ………………………
G10: Beginn: | H10: 13:00:00 | M10: Uhr | T10: Spielzeit: | U10: 1 | V10: 1x | W10: x | X10: 00:11:30 | AC10: min | AK10: Pause: | AL10: 00:02:00 | AQ10: min
B13: I. Teilnehmende Teams
N15: Gruppeneinteilung
N16: 1. | P16: team1
N17: 2. | P17: team2
N18: 3. | P18: team3
N19: 4. | P19: team4
N20: 5. | P20: team5
B22: II. Spielplan
B24: Nr. | D24: Platz | J24: Beginn | O24: Spielpaarung | AW24: Ergebnis | BB24: Fairplay | BG24: Punkte | BM24: Team | BN24: Sp. | BO24: Pkt. | BP24: Tore | BQ24: Gegent. | BR24: Diff.
B25: 1 | D25: 1 | J25: =$H$10 -> 13:00:00 | O25: =P16 -> team1 | AE25: - | AF25: =P17 -> team2 | AW25: 0 | AY25: : | AZ25: 1 | BB25: 3 | BD25: : | BE25: 1 | BG25: =IF(ISBLANK(AW25),"0",IF(AW25>AZ25,3,IF(AW25=AZ25,1,0))) + BB25 -> 3 | BH25: : | BI25: =IF(ISBLANK(AZ25),"0",IF(AZ25>AW25,3,IF(AZ25=AW25,1,0))) + BE25 -> 4 | BM25: =$P$20 -> team5 | BN25: =COUNT($BG$27,$BI$29,$BI$32,$BG$34) -> 4 | BO25: =SUM($BG$27+$BI$29+$BI$32+$BG$34) -> 18 | BP25: =SUM($AW$27+$AZ$29+$AZ$32+$AW$34) -> 7 | BQ25: =SUM($AZ$27+$AW$29+$AW$32+$AZ$34) -> 4 | BR25: =SUM(BP25-BQ25) -> 3
B26: 2 | D26: 1 | J26: =J25+$U$10*$X$10+$AL$10 -> 13:13:30 | O26: =P18 -> team3 | AE26: - | AF26: =P19 -> team4 | AW26: 0 | AY26: : | AZ26: 1 | BB26: 2 | BD26: : | BE26: 1 | BG26: =IF(ISBLANK(AW26),"0",IF(AW26>AZ26,3,IF(AW26=AZ26,1,0))) + BB26 -> 2 | BH26: : | BI26: =IF(ISBLANK(AZ26),"0",IF(AZ26>AW26,3,IF(AZ26=AW26,1,0))) + BE26 -> 4 | BM26: =$P$19 -> team4 | BN26: =COUNT($BI$26,$BG$29,$BI$31,$BG$33) -> 4 | BO26: =SUM($BI$26+$BG$29+$BI$31+$BG$33) -> 18 | BP26: =SUM($AZ$26+$AW$29+$AZ$31+$AW$33) -> 5 | BQ26: =SUM($AW$26+$AZ$29+$AW$31+$AZ$33) -> 2 | BR26: =SUM(BP26-BQ26) -> 3
B27: 3 | D27: 1 | J27: =J26+$U$10*$X$10+$AL$10 -> 13:27:00 | O27: =P20 -> team5 | AE27: - | AF27: =P16 -> team1 | AW27: 1 | AY27: : | AZ27: 1 | BB27: 2 | BD27: : | BE27: 3 | BG27: 3 | BH27: : | BI27: 4 | BM27: =$P$18 -> team3 | BN27: =COUNT($BG$26,$BI$28,$BI$30,$BG$32) -> 4 | BO27: =SUM($BG$26+$BI$28+$BI$30+$BG$32) -> 14 | BP27: =SUM($AW$26+$AZ$28+$AZ$30+$AW$32) -> 4 | BQ27: =SUM($AZ$26+$AW$28+$AW$30+$AZ$32) -> 6 | BR27: =SUM(BP27-BQ27) -> -2
B28: 4 | D28: 1 | J28: 13:40:30 | O28: =P17 -> team2 | AE28: - | AF28: =P18 -> team3 | AW28: 2 | AY28: : | AZ28: 4 | BB28: 3 | BD28: : | BE28: 3 | BG28: 3 | BH28: : | BI28: 6 | BM28: =$P$17 -> team2 | BN28: =COUNT($BI$25,$BG$28,$BG$31,$BI$34) -> 4 | BO28: =SUM($BI$25+$BG$28+$BG$31+$BI$34) -> 13 | BP28: =SUM($AZ$25+$AW$28+$AW$31+$AZ$34) -> 6 | BQ28: =SUM($AW$25+$AZ$28+$AZ$31+$AW$34) -> 8 | BR28: =SUM(BP28-BQ28) -> -2
B29: 5 | D29: 1 | J29: 13:54:00 | O29: =P19 -> team4 | AE29: - | AF29: =P20 -> team5 | AW29: 1 | AY29: : | AZ29: 1 | BB29: 2 | BD29: : | BE29: 4 | BG29: 3 | BH29: : | BI29: 5 | BM29: =$P$16 -> team1 | BN29: =COUNT($BG$25,$BI$27,$BG$30,$BI$33) -> 4 | BO29: =SUM($BG$25+$BI$27+$BG$30+$BI$33) -> 10 | BP29: =SUM($AW$25+$AZ$27+$AW$30+$AZ$33) -> 1 | BQ29: =SUM($AZ$25+$AW$27+$AZ$30+$AW$33) -> 3 | BR29: =SUM(BP29-BQ29) -> -2
B30: 6 | D30: 1 | J30: 14:07:30 | O30: =P16 -> team1 | AE30: - | AF30: =P18 -> team3 | AW30: 0 | AY30: : | AZ30: 0 | BB30: 1 | BD30: : | BE30: 2 | BG30: 2 | BH30: : | BI30: 3
B31: 7 | D31: 1 | J31: 14:21:00 | O31: =P17 -> team2 | AE31: - | AF31: =P19 -> team4 | AW31: 1 | AY31: : | AZ31: 2 | BB31: 3 | BD31: : | BE31: 2 | BG31: 3 | BH31: : | BI31: 5
B32: 8 | D32: 1 | J32: 14:34:30 | O32: =P18 -> team3 | AE32: - | AF32: =P20 -> team5 | AW32: 0 | AY32: : | AZ32: 3 | BB32: 3 | BD32: : | BE32: 2 | BG32: 3 | BH32: : | BI32: 5
B33: 9 | D33: 1 | J33: 14:48:00 | O33: =P19 -> team4 | AE33: - | AF33: =P16 -> team1 | AW33: 1 | AY33: : | AZ33: 0 | BB33: 3 | BD33: : | BE33: 1 | BG33: 6 | BH33: : | BI33: 1
B34: 10 | D34: 1 | J34: 15:01:30 | O34: =P20 -> team5 | AE34: - | AF34: =P17 -> team2 | AW34: 2 | AY34: : | AZ34: 2 | BB34: 4 | BD34: : | BE34: 2 | BG34: 5 | BH34: : | BI34: 3
B36: III. Abschlusstabelle
I39: Team | AH39: Sp. | AK39: Pkt. | AN39: Tore | AS39: Diff.
I40: 1. | K40: =BM25 -> team5 | AH40: =BN25 -> 4 | AK40: =BO25 -> 18 | AN40: =BP25 -> 7 | AP40: : | AQ40: =BQ25 -> 4 | AS40: =BR25 -> 3
I41: 2. | K41: =BM26 -> team4 | AH41: =BN26 -> 4 | AK41: =BO26 -> 18 | AN41: =BP26 -> 5 | AP41: : | AQ41: =BQ26 -> 2 | AS41: =BR26 -> 3
I42: 3. | K42: =BM27 -> team3 | AH42: =BN27 -> 4 | AK42: =BO27 -> 14 | AN42: =BP27 -> 4 | AP42: : | AQ42: =BQ27 -> 6 | AS42: =BR27 -> -2
I43: 4. | K43: =BM28 -> team2 | AH43: =BN28 -> 4 | AK43: =BO28 -> 13 | AN43: =BP28 -> 6 | AP43: : | AQ43: =BQ28 -> 8 | AS43: =BR28 -> -2
I44: 5. | K44: =BM29 -> team1 | AH44: =BN29 -> 4 | AK44: =BO29 -> 10 | AN44: =BP29 -> 1 | AP44: : | AQ44: =BQ29 -> 3 | AS44: =BR29 -> -2

Sheet Testblatt (hidden)
A2: Fairplay
A4: Fussballturnier für - 5 - Teams
L6: Am | M6: Wochentag | U6: , den | Y6: Datum
B8: im Stadion ………………………
G10: Beginn: | H10: 13:00:00 | M10: Uhr | T10: Spielzeit: | U10: 1 | V10: 1x | W10: x | X10: 00:11:30 | AC10: min | AK10: Pause: | AL10: 00:02:00 | AQ10: min
B13: I. Teilnehmende Teams
N15: Gruppeneinteilung
N16: 1. | P16: team1
N17: 2. | P17: team2
N18: 3. | P18: team3
N19: 4. | P19: team4
N20: 5. | P20: team5
B22: II. Spielplan
B24: Nr. | D24: Platz | J24: Beginn | O24: Spielpaarung | AW24: Ergebnis | BB24: Fairplay | BG24: Punkte | BM24: Team | BN24: Sp. | BO24: Pkt. | BP24: Tore | BQ24: Gegent. | BR24: Diff.
B25: 1 | D25: 1 | J25: =$H$10 -> 13:00:00 | O25: =P16 -> team1 | AE25: - | AF25: =P17 -> team2 | AW25: 0 | AY25: : | AZ25: 1 | BB25: 3 | BD25: : | BE25: 1 | BG25: =IF(ISBLANK(AW25),"0",IF(AW25>AZ25,3,IF(AW25=AZ25,1,0))) + BB25 -> 3 | BH25: : | BI25: =IF(ISBLANK(AZ25),"0",IF(AZ25>AW25,3,IF(AZ25=AW25,1,0))) + BE25 -> 4 | BM25: =$P$19 -> team4 | BN25: =COUNT($BI$26,$BG$29,$BI$31,$BG$33) -> 4 | BO25: =SUM($BI$26+$BG$29+$BI$31+$BG$33) -> 18 | BP25: =SUM($AZ$26+$AW$29+$AZ$31+$AW$33) -> 7 | BQ25: =SUM($AW$26+$AZ$29+$AW$31+$AZ$33) -> 2 | BR25: =SUM(BP25-BQ25) -> 5
B26: 2 | D26: 1 | J26: =J25+$U$10*$X$10+$AL$10 -> 13:13:30 | O26: =P18 -> team3 | AE26: - | AF26: =P19 -> team4 | AW26: 0 | AY26: : | AZ26: 3 | BB26: 2 | BD26: : | BE26: 1 | BG26: =IF(ISBLANK(AW26),"0",IF(AW26>AZ26,3,IF(AW26=AZ26,1,0))) + BB26 -> 2 | BH26: : | BI26: =IF(ISBLANK(AZ26),"0",IF(AZ26>AW26,3,IF(AZ26=AW26,1,0))) + BE26 -> 4 | BM26: =$P$20 -> team5 | BN26: =COUNT($BG$27,$BI$29,$BI$32,$BG$34) -> 4 | BO26: =SUM($BG$27+$BI$29+$BI$32+$BG$34) -> 18 | BP26: =SUM($AW$27+$AZ$29+$AZ$32+$AW$34) -> 7 | BQ26: =SUM($AZ$27+$AW$29+$AW$32+$AZ$34) -> 4 | BR26: =SUM(BP26-BQ26) -> 3
B27: 3 | D27: 1 | J27: =J26+$U$10*$X$10+$AL$10 -> 13:27:00 | O27: =P20 -> team5 | AE27: - | AF27: =P16 -> team1 | AW27: 1 | AY27: : | AZ27: 1 | BB27: 2 | BD27: : | BE27: 3 | BG27: 3 | BH27: : | BI27: 4 | BM27: =$P$18 -> team3 | BN27: =COUNT($BG$26,$BI$28,$BI$30,$BG$32) -> 4 | BO27: =SUM($BG$26+$BI$28+$BI$30+$BG$32) -> 14 | BP27: =SUM($AW$26+$AZ$28+$AZ$30+$AW$32) -> 4 | BQ27: =SUM($AZ$26+$AW$28+$AW$30+$AZ$32) -> 8 | BR27: =SUM(BP27-BQ27) -> -4
B28: 4 | D28: 1 | J28: 13:40:30 | O28: =P17 -> team2 | AE28: - | AF28: =P18 -> team3 | AW28: 2 | AY28: : | AZ28: 4 | BB28: 3 | BD28: : | BE28: 3 | BG28: 3 | BH28: : | BI28: 6 | BM28: =$P$17 -> team2 | BN28: =COUNT($BI$25,$BG$28,$BG$31,$BI$34) -> 4 | BO28: =SUM($BI$25+$BG$28+$BG$31+$BI$34) -> 13 | BP28: =SUM($AZ$25+$AW$28+$AW$31+$AZ$34) -> 6 | BQ28: =SUM($AW$25+$AZ$28+$AZ$31+$AW$34) -> 8 | BR28: =SUM(BP28-BQ28) -> -2
B29: 5 | D29: 1 | J29: 13:54:00 | O29: =P19 -> team4 | AE29: - | AF29: =P20 -> team5 | AW29: 1 | AY29: : | AZ29: 1 | BB29: 2 | BD29: : | BE29: 4 | BG29: 3 | BH29: : | BI29: 5 | BM29: =$P$16 -> team1 | BN29: =COUNT($BG$25,$BI$27,$BG$30,$BI$33) -> 4 | BO29: =SUM($BG$25+$BI$27+$BG$30+$BI$33) -> 10 | BP29: =SUM($AW$25+$AZ$27+$AW$30+$AZ$33) -> 1 | BQ29: =SUM($AZ$25+$AW$27+$AZ$30+$AW$33) -> 3 | BR29: =SUM(BP29-BQ29) -> -2
B30: 6 | D30: 1 | J30: 14:07:30 | O30: =P16 -> team1 | AE30: - | AF30: =P18 -> team3 | AW30: 0 | AY30: : | AZ30: 0 | BB30: 1 | BD30: : | BE30: 2 | BG30: 2 | BH30: : | BI30: 3
B31: 7 | D31: 1 | J31: 14:21:00 | O31: =P17 -> team2 | AE31: - | AF31: =P19 -> team4 | AW31: 1 | AY31: : | AZ31: 2 | BB31: 3 | BD31: : | BE31: 2 | BG31: 3 | BH31: : | BI31: 5
B32: 8 | D32: 1 | J32: 14:34:30 | O32: =P18 -> team3 | AE32: - | AF32: =P20 -> team5 | AW32: 0 | AY32: : | AZ32: 3 | BB32: 3 | BD32: : | BE32: 2 | BG32: 3 | BH32: : | BI32: 5
B33: 9 | D33: 1 | J33: 14:48:00 | O33: =P19 -> team4 | AE33: - | AF33: =P16 -> team1 | AW33: 1 | AY33: : | AZ33: 0 | BB33: 3 | BD33: : | BE33: 1 | BG33: 6 | BH33: : | BI33: 1
B34: 10 | D34: 1 | J34: 15:01:30 | O34: =P20 -> team5 | AE34: - | AF34: =P17 -> team2 | AW34: 2 | AY34: : | AZ34: 2 | BB34: 4 | BD34: : | BE34: 2 | BG34: 5 | BH34: : | BI34: 3
B36: III. Abschlusstabelle
I39: Team | AH39: Sp. | AK39: Pkt. | AN39: Tore | AS39: Diff. | AV39: team | AW39: pkt.2 | AX39: tore | AY39: gegentore | AZ39: diff
I40: 1. | K40: =AV40 -> team1 | AH40: 4 | AK40: =AW40 -> 0 | AN40: =AX40 -> 0 | AP40: : | AQ40: =AY40 -> 0 | AS40: =AZ40 -> 0 | AV40: =$P$16 -> team1 | AW40: =teamPoints(AV40,$O$25:$AD$34,$AF$25:$AV$34,$BG$25:$BG$34,$BI$25:$BI$34) -> 0 | AX40: =teamGoalsPlus(AV40,$O$25:$AD$34,$AF$25:$AV$34,$AW$25:$AX$34,$AZ$25:$BA$34) -> 0 | AY40: =teamGoalsMinus(AV40,$O$25:$AD$34,$AF$25:$AV$34,$AW$25:$AX$34,$AZ$25:$BA$34) -> 0 | AZ40: =AX40-AY40 -> 0
I41: 2. | K41: =AV41 -> team2 | AH41: 4 | AK41: =AW41 -> 0 | AN41: =AX41 -> 0 | AP41: : | AQ41: =AY41 -> 0 | AS41: =AZ41 -> 0 | AV41: =$P$17 -> team2 | AW41: =teamPoints(AV41,$O$25:$AD$34,$AF$25:$AV$34,$BG$25:$BG$34,$BI$25:$BI$34) -> 0 | AX41: =teamGoalsPlus(AV41,$O$25:$AD$34,$AF$25:$AV$34,$AW$25:$AX$34,$AZ$25:$BA$34) -> 0 | AY41: =teamGoalsMinus(AV41,$O$25:$AD$34,$AF$25:$AV$34,$AW$25:$AX$34,$AZ$25:$BA$34) -> 0 | AZ41: =AX41-AY41 -> 0
I42: 3. | K42: team3 | AH42: 4 | AK42: 0 | AN42: 0 | AP42: : | AQ42: 0 | AS42: 0 | AV42: =$P$18 -> team3 | AW42: =teamPoints(AV42,$O$25:$AD$34,$AF$25:$AV$34,$BG$25:$BG$34,$BI$25:$BI$34) -> 0 | AX42: =teamGoalsPlus(AV42,$O$25:$AD$34,$AF$25:$AV$34,$AW$25:$AX$34,$AZ$25:$BA$34) -> 0 | AY42: =teamGoalsMinus(AV42,$O$25:$AD$34,$AF$25:$AV$34,$AW$25:$AX$34,$AZ$25:$BA$34) -> 0 | AZ42: =AX42-AY42 -> 0
I43: 4. | K43: team5 | AH43: 4 | AK43: 0 | AN43: 0 | AP43: : | AQ43: 0 | AS43: 0 | AV43: =$P$20 -> team5 | AW43: =teamPoints(AV43,$O$25:$AD$34,$AF$25:$AV$34,$BG$25:$BG$34,$BI$25:$BI$34) -> 0 | AX43: =teamGoalsPlus(AV43,$O$25:$AD$34,$AF$25:$AV$34,$AW$25:$AX$34,$AZ$25:$BA$34) -> 0 | AY43: =teamGoalsMinus(AV43,$O$25:$AD$34,$AF$25:$AV$34,$AW$25:$AX$34,$AZ$25:$BA$34) -> 0 | AZ43: =AX43-AY43 -> 0
I44: 5. | K44: team4 | AH44: 4 | AK44: =AW44 -> 0 | AN44: 0 | AP44: : | AQ44: 0 | AS44: 0 | AV44: =$P$19 -> team4 | AW44: =teamPoints(AV44,$O$25:$AD$34,$AF$25,$BG$25,$BI$25) -> 0 | AX44: =teamGoalsPlus(AV44,$O$25:$AD$34,$AF$25:$AV$34,$AW$25:$AX$34,$AZ$25:$BA$34) -> 0 | AY44: =teamGoalsMinus(AV44,$O$25:$AD$34,$AF$25:$AV$34,$AW$25:$AX$34,$AZ$25:$BA$34) -> 0 | AZ44: =AX44-AY44 -> 0
Y50: =SUM(AA51:AA55) -> 13
AA51: 1
AA52: 2
AA53: 3
AA54: 2
AA55: 5
